Workbook

Sheet Hoja1
N1: Código: M-AC-F012
N2: Versión: 01 | Z2: TIPO DE ENTIDAD O USUARIO | AE2: DÍAS NO LABORABLES
N3: Fecha: 15/01/2017 | Z3: CIUDADANO | AE3: 43831
N4: Página: 1 de 1 | Z4: ACADEMIA | AE4: 43834
Z5: EMPRESA PRIVADA | AE5: 43835
B6: Dependencia: | D6: GRUPO DE SERVICIO AL CIUDADANO | Z6: ENTIDAD PÚBLICA | AE6: 43836
Z7: EXTRANJERO | AE7: 43841
B8: Período de Reporte | D8: SEGUNDO TRIMESTRE 2020 | Z8: FUNCIONARIO IDEAM | AE8: 43842
Z9: ONG/ORG | AE9: 43848
A10: DATOS DEL REQUERIMIENTO | D10: POSTURA DE REQUERIMIENTO | G10: RESOLUCION DEL REQUERIMIENTO | L10: ANÁLISIS DE RESPUESTAS | AE10: 43849
A11: No. | B11: No. DE REQUERIMIENTO | C11: FECHA DE REQUERIMIENTO (dd/mm/aaaa) | D11: MEDIO RECEPCIÓN | E11: TIPO DE REQUERIMIENTO | F11: PRODUCTO O SERVICIO AL CUAL SE REFIERE EL REQUERIMIENTO | G11: ¿ EL REQUERIMIENTO FUE ESCALADO? | H11: DEPENDENCIA QUE DA RESPUESTA O A LA QUE SE DIRECCIONA | I11: FECHA DE RESOLUCIÓN DEL REQUERIMIENTO (dd/mm/aaaa) | J11: CANAL POR EL CUAL FUE RESUELTO EL REQUERIMIENTO | K11: OBSERVACIONES | L11: FECHA OPORTUNA DE RESPUESTA | M11: ESTADO (A TIEMPO, FUERA DE TIEMPO, SIN RESPUESTA) | N11: TIEMPO QUE TARDÓ EN DAR RESPUESTA | O11: DÍAS VENCIDOS CON RESPECTO A FECHA OPORTUNA DE RESPUESTA | Z11: GÉNERO | AE11: 43855
A12: =IF(B12<>"",1,"") -> 1 | B12: 20200401234224 | C12: 43922 | D12: WEB (MÓDULO DE SOLICITUD DE INFORMACIÓN HIDROMETEOROLÓGICA) | E12: SOLICITUD DE INFORMACIÓN Y DOCUMENTOS | F12: SOLICITUD DE INFORMACIÓN HIDROMETEOROLÓGICA | G12: NO | H12: GRUPO DE ATENCIÓN AL CIUDADANO | I12: 43936 | L12: =IFERROR(WORKDAY(C12,R12,DiasNOLaborables),"") -> 43955 | M12: =+IF(C12="","",IF(I12="","",(IF(I12<=L12,"A TIEMPO","FUERA DE TIEMPO")))) -> A TIEMPO | N12: =IF(I12="","",NETWORKDAYS([4]Hoja1!C12+1,[4]Hoja1!P12,DiasNOLaborables)) -> 8 | O12: =IF(NETWORKDAYS(L12+1,I12,DiasNOLaborables)<=0,"",NETWORKDAYS(L12+1,I12,DiasNOLaborables)) ->  | R12: =IFERROR(VLOOKUP(E12,$Z$50:$AA$63,2),"") -> 20 | Z12: FEMENINO | AE12: 43856
A13: =IF(A12<>"",A12+1,"") -> 2 | B13: 20200401205707 | C13: 43922 | D13: WEB (MÓDULO DE SOLICITUD DE INFORMACIÓN HIDROMETEOROLÓGICA) | E13: SOLICITUD DE INFORMACIÓN Y DOCUMENTOS | F13: SOLICITUD DE INFORMACIÓN HIDROMETEOROLÓGICA | G13: NO | H13: GRUPO DE ATENCIÓN AL CIUDADANO | I13: 43936 | L13: =IFERROR(WORKDAY(C13,R13,DiasNOLaborables),"") -> 43955 | M13: =+IF(C13="","",IF(I13="","",(IF(I13<=L13,"A TIEMPO","FUERA DE TIEMPO")))) -> A TIEMPO | N13: =IF(I13="","",NETWORKDAYS([4]Hoja1!C13+1,[4]Hoja1!P13,DiasNOLaborables)) -> 8 | R13: =IFERROR(VLOOKUP(E13,$Z$50:$AA$63,2),"") -> 20 | Z13: MASCULINO | AE13: 43862
A14: =IF(B13<>"",A13+1,"") -> 3 | B14: 20200401205014 | C14: 43922 | D14: WEB (MÓDULO DE SOLICITUD DE INFORMACIÓN HIDROMETEOROLÓGICA) | E14: SOLICITUD DE INFORMACIÓN Y DOCUMENTOS | F14: SOLICITUD DE INFORMACIÓN HIDROMETEOROLÓGICA | G14: NO | H14: GRUPO DE ATENCIÓN AL CIUDADANO | I14: 43936 | L14: =IFERROR(WORKDAY(C14,R14,DiasNOLaborables),"") -> 43955 | M14: =+IF(C14="","",IF(I14="","",(IF(I14<=L14,"A TIEMPO","FUERA DE TIEMPO")))) -> A TIEMPO | N14: =IF(I14="","",NETWORKDAYS([4]Hoja1!C14+1,[4]Hoja1!P14,DiasNOLaborables)) -> 8 | R14: 20 | Z14: PERSONA JURÍDICA | AE14: 43863
A15: 4 | B15: 20200401183445 | C15: 43922 | D15: WEB (MÓDULO DE SOLICITUD DE INFORMACIÓN HIDROMETEOROLÓGICA) | E15: SOLICITUD DE INFORMACIÓN Y DOCUMENTOS | F15: SOLICITUD DE INFORMACIÓN HIDROMETEOROLÓGICA | G15: NO | H15: GRUPO DE ATENCIÓN AL CIUDADANO | I15: 43936 | L15: =IFERROR(WORKDAY(C15,R15,DiasNOLaborables),"") -> 43955 | M15: =+IF(C15="","",IF(I15="","",(IF(I15<=L15,"A TIEMPO","FUERA DE TIEMPO")))) -> A TIEMPO | N15: =IF(I15="","",NETWORKDAYS([4]Hoja1!C15+1,[4]Hoja1!P15,DiasNOLaborables)) -> 8 | R15: 20 | AE15: 43869
A16: 5 | B16: 20200401182047 | C16: 43922 | D16: WEB (MÓDULO DE SOLICITUD DE INFORMACIÓN HIDROMETEOROLÓGICA) | E16: SOLICITUD DE INFORMACIÓN Y DOCUMENTOS | F16: SOLICITUD DE INFORMACIÓN HIDROMETEOROLÓGICA | G16: NO | H16: GRUPO DE ATENCIÓN AL CIUDADANO | I16: 43936 | L16: =IFERROR(WORKDAY(C16,R16,DiasNOLaborables),"") -> 43955 | M16: =+IF(C16="","",IF(I16="","",(IF(I16<=L16,"A TIEMPO","FUERA DE TIEMPO")))) -> A TIEMPO | N16: =IF(I16="","",NETWORKDAYS([4]Hoja1!C16+1,[4]Hoja1!P16,DiasNOLaborables)) -> 8 | R16: 20 | Z16: DEPENDENCIA QUE DA RESPUESTA O LA QUE SE DIRECCIONA | AE16: 43870
A17: 6 | B17: 20200401181607 | C17: 43922 | D17: WEB (MÓDULO DE SOLICITUD DE INFORMACIÓN HIDROMETEOROLÓGICA) | E17: SOLICITUD DE INFORMACIÓN Y DOCUMENTOS | F17: SOLICITUD DE INFORMACIÓN HIDROMETEOROLÓGICA | G17: NO | H17: GRUPO DE ATENCIÓN AL CIUDADANO | I17: 43936 | L17: =IFERROR(WORKDAY(C17,R17,DiasNOLaborables),"") -> 43955 | M17: =+IF(C17="","",IF(I17="","",(IF(I17<=L17,"A TIEMPO","FUERA DE TIEMPO")))) -> A TIEMPO | N17: =IF(I17="","",NETWORKDAYS([4]Hoja1!C17+1,[4]Hoja1!P17,DiasNOLaborables)) -> 8 | R17: 20 | Z17: AREA OPERATIVA No. 1 | AE17: 43876
A18: 7 | B18: 20200401181427 | C18: 43922 | D18: WEB (MÓDULO DE SOLICITUD DE INFORMACIÓN HIDROMETEOROLÓGICA) | E18: SOLICITUD DE INFORMACIÓN Y DOCUMENTOS | F18: SOLICITUD DE INFORMACIÓN HIDROMETEOROLÓGICA | G18: NO | H18: GRUPO DE ATENCIÓN AL CIUDADANO | I18: 43936 | L18: =IFERROR(WORKDAY(C18,R18,DiasNOLaborables),"") -> 43955 | M18: =+IF(C18="","",IF(I18="","",(IF(I18<=L18,"A TIEMPO","FUERA DE TIEMPO")))) -> A TIEMPO | N18: =IF(I18="","",NETWORKDAYS([4]Hoja1!C18+1,[4]Hoja1!P18,DiasNOLaborables)) -> 8 | R18: 20 | Z18: AREA OPERATIVA No. 2 | AE18: 43877
A19: 8 | B19: 20200401174453 | C19: 43922 | D19: WEB (MÓDULO DE SOLICITUD DE INFORMACIÓN HIDROMETEOROLÓGICA) | E19: SOLICITUD DE INFORMACIÓN Y DOCUMENTOS | F19: SOLICITUD DE INFORMACIÓN HIDROMETEOROLÓGICA | G19: NO | H19: GRUPO DE ATENCIÓN AL CIUDADANO | I19: 43936 | L19: =IFERROR(WORKDAY(C19,R19,DiasNOLaborables),"") -> 43955 | M19: =+IF(C19="","",IF(I19="","",(IF(I19<=L19,"A TIEMPO","FUERA DE TIEMPO")))) -> A TIEMPO | N19: =IF(I19="","",NETWORKDAYS([4]Hoja1!C19+1,[4]Hoja1!P19,DiasNOLaborables)) -> 8 | R19: 20 | Z19: AREA OPERATIVA No. 3 | AE19: 43883
A20: 9 | B20: 20200401164848 | C20: 43922 | D20: WEB (MÓDULO DE SOLICITUD DE INFORMACIÓN HIDROMETEOROLÓGICA) | E20: SOLICITUD DE INFORMACIÓN Y DOCUMENTOS | F20: SOLICITUD DE INFORMACIÓN HIDROMETEOROLÓGICA | G20: NO | H20: GRUPO DE ATENCIÓN AL CIUDADANO | I20: 43936 | L20: =IFERROR(WORKDAY(C20,R20,DiasNOLaborables),"") -> 43955 | M20: =+IF(C20="","",IF(I20="","",(IF(I20<=L20,"A TIEMPO","FUERA DE TIEMPO")))) -> A TIEMPO | N20: =IF(I20="","",NETWORKDAYS([4]Hoja1!C20+1,[4]Hoja1!P20,DiasNOLaborables)) -> 8 | R20: 20 | Z20: AREA OPERATIVA No. 4 | AE20: 43884
A21: 10 | B21: 20200401163320 | C21: 43922 | D21: WEB (MÓDULO DE SOLICITUD DE INFORMACIÓN HIDROMETEOROLÓGICA) | E21: SOLICITUD DE INFORMACIÓN Y DOCUMENTOS | F21: SOLICITUD DE INFORMACIÓN HIDROMETEOROLÓGICA | G21: NO | H21: GRUPO DE ATENCIÓN AL CIUDADANO | I21: 43936 | L21: =IFERROR(WORKDAY(C21,R21,DiasNOLaborables),"") -> 43955 | M21: =+IF(C21="","",IF(I21="","",(IF(I21<=L21,"A TIEMPO","FUERA DE TIEMPO")))) -> A TIEMPO | N21: =IF(I21="","",NETWORKDAYS([4]Hoja1!C21+1,[4]Hoja1!P21,DiasNOLaborables)) -> 8 | R21: 20 | Z21: AREA OPERATIVA No. 5 | AE21: 43890
A22: 11 | B22: 20200401161505 | C22: 43922 | D22: WEB (MÓDULO DE SOLICITUD DE INFORMACIÓN HIDROMETEOROLÓGICA) | E22: SOLICITUD DE INFORMACIÓN Y DOCUMENTOS | F22: SOLICITUD DE INFORMACIÓN HIDROMETEOROLÓGICA | G22: NO | H22: GRUPO DE ATENCIÓN AL CIUDADANO | I22: 43936 | L22: =IFERROR(WORKDAY(C22,R22,DiasNOLaborables),"") -> 43955 | M22: =+IF(C22="","",IF(I22="","",(IF(I22<=L22,"A TIEMPO","FUERA DE TIEMPO")))) -> A TIEMPO | N22: =IF(I22="","",NETWORKDAYS([4]Hoja1!C22+1,[4]Hoja1!P22,DiasNOLaborables)) -> 8 | R22: 20 | Z22: AREA OPERATIVA No. 6 | AE22: 43891
A23: 12 | B23: 20200401124000 | C23: 43922 | D23: WEB (MÓDULO DE SOLICITUD DE INFORMACIÓN HIDROMETEOROLÓGICA) | E23: SOLICITUD DE INFORMACIÓN Y DOCUMENTOS | F23: SOLICITUD DE INFORMACIÓN HIDROMETEOROLÓGICA | G23: NO | H23: GRUPO DE ATENCIÓN AL CIUDADANO | I23: 43936 | L23: =IFERROR(WORKDAY(C23,R23,DiasNOLaborables),"") -> 43955 | M23: =+IF(C23="","",IF(I23="","",(IF(I23<=L23,"A TIEMPO","FUERA DE TIEMPO")))) -> A TIEMPO | N23: =IF(I23="","",NETWORKDAYS([4]Hoja1!C23+1,[4]Hoja1!P23,DiasNOLaborables)) -> 8 | R23: 20 | Z23: AREA OPERATIVA No. 7 | AE23: 43897
A24: 13 | B24: 20200401110727 | C24: 43922 | D24: WEB (MÓDULO DE SOLICITUD DE INFORMACIÓN HIDROMETEOROLÓGICA) | E24: SOLICITUD DE INFORMACIÓN Y DOCUMENTOS | F24: SOLICITUD DE INFORMACIÓN HIDROMETEOROLÓGICA | G24: NO | H24: GRUPO DE ATENCIÓN AL CIUDADANO | I24: 43936 | L24: =IFERROR(WORKDAY(C24,R24,DiasNOLaborables),"") -> 43955 | M24: =+IF(C24="","",IF(I24="","",(IF(I24<=L24,"A TIEMPO","FUERA DE TIEMPO")))) -> A TIEMPO | N24: =IF(I24="","",NETWORKDAYS([4]Hoja1!C24+1,[4]Hoja1!P24,DiasNOLaborables)) -> 8 | R24: 20 | Z24: AREA OPERATIVA No. 8 | AE24: 43898
A25: 14 | B25: 20200401105727 | C25: 43922 | D25: WEB (MÓDULO DE SOLICITUD DE INFORMACIÓN HIDROMETEOROLÓGICA) | E25: SOLICITUD DE INFORMACIÓN Y DOCUMENTOS | F25: SOLICITUD DE INFORMACIÓN HIDROMETEOROLÓGICA | G25: NO | H25: GRUPO DE ATENCIÓN AL CIUDADANO | I25: 43936 | L25: =IFERROR(WORKDAY(C25,R25,DiasNOLaborables),"") -> 43955 | M25: =+IF(C25="","",IF(I25="","",(IF(I25<=L25,"A TIEMPO","FUERA DE TIEMPO")))) -> A TIEMPO | N25: =IF(I25="","",NETWORKDAYS([4]Hoja1!C25+1,[4]Hoja1!P25,DiasNOLaborables)) -> 8 | R25: 20 | Z25: AREA OPERATIVA No. 9 | AE25: 43904
A26: 15 | B26: 20200401104313 | C26: 43922 | D26: WEB (MÓDULO DE SOLICITUD DE INFORMACIÓN HIDROMETEOROLÓGICA) | E26: SOLICITUD DE INFORMACIÓN Y DOCUMENTOS | F26: SOLICITUD DE INFORMACIÓN HIDROMETEOROLÓGICA | G26: NO | H26: GRUPO DE ATENCIÓN AL CIUDADANO | I26: 43936 | L26: =IFERROR(WORKDAY(C26,R26,DiasNOLaborables),"") -> 43955 | M26: =+IF(C26="","",IF(I26="","",(IF(I26<=L26,"A TIEMPO","FUERA DE TIEMPO")))) -> A TIEMPO | N26: =IF(I26="","",NETWORKDAYS([4]Hoja1!C26+1,[4]Hoja1!P26,DiasNOLaborables)) -> 8 | R26: 20 | Z26: AREA OPERATIVA No. 10 | AE26: 43905
A27: 16 | B27: 20209050028162 | C27: 43922 | D27: MODULO CONTACTENOS | E27: SOLICITUD DE INFORMACIÓN Y DOCUMENTOS | F27: SOLICITUD DE INFORMACIÓN HIDROMETEOROLÓGICA | G27: NO | H27: GRUPO DE ATENCIÓN AL CIUDADANO | I27: 43936 | L27: =IFERROR(WORKDAY(C27,R27,DiasNOLaborables),"") -> 43955 | M27: =+IF(C27="","",IF(I27="","",(IF(I27<=L27,"A TIEMPO","FUERA DE TIEMPO")))) -> A TIEMPO | N27: =IF(I27="","",NETWORKDAYS([4]Hoja1!C27+1,[4]Hoja1!P27,DiasNOLaborables)) -> 8 | R27: 20 | Z27: AREA OPERATIVA No. 11 | AE27: 43911
A28: 17 | B28: 20209050028172 | C28: 43922 | D28: MODULO CONTACTENOS | E28: SOLICITUD DE INFORMACIÓN Y DOCUMENTOS | F28: SOLICITUD DE INFORMACIÓN HIDROMETEOROLÓGICA | G28: NO | H28: GRUPO DE ATENCIÓN AL CIUDADANO | I28: 43936 | L28: =IFERROR(WORKDAY(C28,R28,DiasNOLaborables),"") -> 43955 | M28: =+IF(C28="","",IF(I28="","",(IF(I28<=L28,"A TIEMPO","FUERA DE TIEMPO")))) -> A TIEMPO | N28: =IF(I28="","",NETWORKDAYS([4]Hoja1!C28+1,[4]Hoja1!P28,DiasNOLaborables)) -> 8 | R28: 20 | Z28: DIRECCIÓN GENERAL | AE28: 43912
A29: 18 | B29: 20209050028192 | C29: 43922 | D29: MODULO CONTACTENOS | E29: SOLICITUD DE INFORMACIÓN Y DOCUMENTOS | F29: SOLICITUD DE INFORMACIÓN HIDROMETEOROLÓGICA | G29: NO | H29: GRUPO DE ATENCIÓN AL CIUDADANO | I29: 43936 | L29: =IFERROR(WORKDAY(C29,R29,DiasNOLaborables),"") -> 43955 | M29: =+IF(C29="","",IF(I29="","",(IF(I29<=L29,"A TIEMPO","FUERA DE TIEMPO")))) -> A TIEMPO | N29: =IF(I29="","",NETWORKDAYS([4]Hoja1!C29+1,[4]Hoja1!P29,DiasNOLaborables)) -> 8 | R29: 20 | Z29: GRUPO DE ADMINISTRACIÓN Y DESARROLLO DEL TALENTO HUMANO | AE29: 43913
A30: 19 | B30: 20209050028202 | C30: 43922 | D30: MODULO CONTACTENOS | E30: SOLICITUD DE INFORMACIÓN Y DOCUMENTOS | F30: SOLICITUD DE INFORMACIÓN HIDROMETEOROLÓGICA | G30: NO | H30: GRUPO DE ATENCIÓN AL CIUDADANO | I30: 43936 | L30: =IFERROR(WORKDAY(C30,R30,DiasNOLaborables),"") -> 43955 | M30: =+IF(C30="","",IF(I30="","",(IF(I30<=L30,"A TIEMPO","FUERA DE TIEMPO")))) -> A TIEMPO | N30: =IF(I30="","",NETWORKDAYS([4]Hoja1!C30+1,[4]Hoja1!P30,DiasNOLaborables)) -> 8 | R30: 20 | Z30: GRUPO DE COMUNICACIONES | AE30: 43918
A31: 20 | B31: 20209050028352 | C31: 43922 | D31: MODULO CONTACTENOS | E31: SOLICITUD DE INFORMACIÓN Y DOCUMENTOS | F31: SOLICITUD DE INFORMACIÓN HIDROMETEOROLÓGICA | G31: NO | H31: GRUPO DE ATENCIÓN AL CIUDADANO | I31: 43936 | L31: =IFERROR(WORKDAY(C31,R31,DiasNOLaborables),"") -> 43955 | M31: =+IF(C31="","",IF(I31="","",(IF(I31<=L31,"A TIEMPO","FUERA DE TIEMPO")))) -> A TIEMPO | N31: =IF(I31="","",NETWORKDAYS([4]Hoja1!C31+1,[4]Hoja1!P31,DiasNOLaborables)) -> 4 | R31: 20 | Z31: GRUPO DE CONTABILIDAD | AE31: 43919
A32: 21 | B32: 20209050028402 | C32: 43922 | D32: MODULO CONTACTENOS | E32: SOLICITUD DE INFORMACIÓN Y DOCUMENTOS | F32: SOLICITUD DE INFORMACIÓN HIDROMETEOROLÓGICA | G32: NO | H32: GRUPO DE ATENCIÓN AL CIUDADANO | I32: 43936 | L32: =IFERROR(WORKDAY(C32,R32,DiasNOLaborables),"") -> 43955 | M32: =+IF(C32="","",IF(I32="","",(IF(I32<=L32,"A TIEMPO","FUERA DE TIEMPO")))) -> A TIEMPO | N32: =IF(I32="","",NETWORKDAYS([4]Hoja1!C32+1,[4]Hoja1!P32,DiasNOLaborables)) -> 4 | R32: 20 | Z32: GRUPO DE CONTROL DISCIPLINARIO INTERNO | AE32: 43925
A33: 22 | B33: 20209050028432 | C33: 43922 | D33: MODULO CONTACTENOS | E33: SOLICITUD DE INFORMACIÓN Y DOCUMENTOS | F33: SOLICITUD DE INFORMACIÓN HIDROMETEOROLÓGICA | G33: NO | H33: GRUPO DE ATENCIÓN AL CIUDADANO | I33: 43936 | L33: =IFERROR(WORKDAY(C33,R33,DiasNOLaborables),"") -> 43955 | M33: =+IF(C33="","",IF(I33="","",(IF(I33<=L33,"A TIEMPO","FUERA DE TIEMPO")))) -> A TIEMPO | N33: =IF(I33="","",NETWORKDAYS([4]Hoja1!C33+1,[4]Hoja1!P33,DiasNOLaborables)) -> 4 | R33: 20 | Z33: GRUPO DE GESTIÓN DOCUMENTAL Y CENTRO DE DOCUMENTACIÓN | AE33: 43926
A34: 23 | B34: 20207090000872 | C34: 43922 | D34: MODULO CONTACTENOS | E34: SOLICITUD DE INFORMACIÓN Y DOCUMENTOS | F34: SOLICITUD DE INFORMACIÓN HIDROMETEOROLÓGICA | G34: NO | H34: GRUPO DE ATENCIÓN AL CIUDADANO | I34: 43936 | L34: =IFERROR(WORKDAY(C34,R34,DiasNOLaborables),"") -> 43955 | M34: =+IF(C34="","",IF(I34="","",(IF(I34<=L34,"A TIEMPO","FUERA DE TIEMPO")))) -> A TIEMPO | N34: =IF(I34="","",NETWORKDAYS([4]Hoja1!C34+1,[4]Hoja1!P34,DiasNOLaborables)) -> 4 | R34: 20 | Z34: GRUPO DE PRESUPUESTO | AE34: 43930
A35: 24 | B35: 20209050028452 | C35: 43922 | D35: MODULO CONTACTENOS | E35: SOLICITUD DE INFORMACIÓN Y DOCUMENTOS | F35: SOLICITUD DE INFORMACIÓN HIDROMETEOROLÓGICA | G35: NO | H35: GRUPO DE ATENCIÓN AL CIUDADANO | I35: 43936 | L35: =IFERROR(WORKDAY(C35,R35,DiasNOLaborables),"") -> 43955 | M35: =+IF(C35="","",IF(I35="","",(IF(I35<=L35,"A TIEMPO","FUERA DE TIEMPO")))) -> A TIEMPO | N35: =IF(I35="","",NETWORKDAYS([4]Hoja1!C35+1,[4]Hoja1!P35,DiasNOLaborables)) -> 4 | R35: 20 | Z35: GRUPO DE SERVICIO AL CIUDADANO | AE35: 43931
A36: 25 | B36: 20209050028462 | C36: 43922 | D36: MODULO CONTACTENOS | E36: SOLICITUD DE INFORMACIÓN Y DOCUMENTOS | F36: SOLICITUD DE INFORMACIÓN HIDROMETEOROLÓGICA | G36: NO | H36: GRUPO DE ATENCIÓN AL CIUDADANO | I36: 43937 | L36: =IFERROR(WORKDAY(C36,R36,DiasNOLaborables),"") -> 43955 | M36: =+IF(C36="","",IF(I36="","",(IF(I36<=L36,"A TIEMPO","FUERA DE TIEMPO")))) -> A TIEMPO | N36: =IF(I36="","",NETWORKDAYS([4]Hoja1!C36+1,[4]Hoja1!P36,DiasNOLaborables)) -> 7 | O36: =IF(NETWORKDAYS(L36+1,I36,DiasNOLaborables)<=0,"",NETWORKDAYS(L36+1,I36,DiasNOLaborables)) ->  | R36: 20 | Z36: GRUPO DE SERVICIOS ADMINISTRATIVOS | AE36: 43932
A37: 26 | B37: 20209050028522 | C37: 43922 | D37: MODULO CONTACTENOS | E37: SOLICITUD DE INFORMACIÓN Y DOCUMENTOS | F37: SOLICITUD DE INFORMACIÓN HIDROMETEOROLÓGICA | G37: NO | H37: GRUPO DE ATENCIÓN AL CIUDADANO | I37: 43937 | L37: =IFERROR(WORKDAY(C37,R37,DiasNOLaborables),"") -> 43955 | M37: =+IF(C37="","",IF(I37="","",(IF(I37<=L37,"A TIEMPO","FUERA DE TIEMPO")))) -> A TIEMPO | N37: =IF(I37="","",NETWORKDAYS([4]Hoja1!C37+1,[4]Hoja1!P37,DiasNOLaborables)) -> 7 | R37: =IFERROR(VLOOKUP(E37,$Z$50:$AA$63,2),"") -> 20 | Z37: GRUPO DE TESORERÍA | AE37: 43933
A38: 27 | B38: 20209050028532 | C38: 43922 | D38: MODULO CONTACTENOS | E38: SOLICITUD DE INFORMACIÓN Y DOCUMENTOS | F38: SOLICITUD DE INFORMACIÓN HIDROMETEOROLÓGICA | G38: NO | H38: GRUPO DE ATENCIÓN AL CIUDADANO | I38: 43937 | L38: =IFERROR(WORKDAY(C38,R38,DiasNOLaborables),"") -> 43955 | M38: =+IF(C38="","",IF(I38="","",(IF(I38<=L38,"A TIEMPO","FUERA DE TIEMPO")))) -> A TIEMPO | N38: =IF(I38="","",NETWORKDAYS([4]Hoja1!C38+1,[4]Hoja1!P38,DiasNOLaborables)) -> 7 | R38: 20 | Z38: OFICINA ASESORA DE PLANEACIÓN | AE38: 43939
A39: 28 | B39: 20209050028562 | C39: 43922 | D39: MODULO CONTACTENOS | E39: SOLICITUD DE INFORMACIÓN Y DOCUMENTOS | F39: SOLICITUD DE INFORMACIÓN HIDROMETEOROLÓGICA | G39: NO | H39: GRUPO DE ATENCIÓN AL CIUDADANO | I39: 43937 | L39: =IFERROR(WORKDAY(C39,R39,DiasNOLaborables),"") -> 43955 | M39: =+IF(C39="","",IF(I39="","",(IF(I39<=L39,"A TIEMPO","FUERA DE TIEMPO")))) -> A TIEMPO | N39: =IF(I39="","",NETWORKDAYS([4]Hoja1!C39+1,[4]Hoja1!P39,DiasNOLaborables)) -> 7 | R39: 20 | Z39: OFICINA ASESORA JURÍDICA | AE39: 43940
A40: 29 | B40: 20209050028592 | C40: 43922 | D40: MODULO CONTACTENOS | E40: SOLICITUD DE INFORMACIÓN Y DOCUMENTOS | F40: SOLICITUD DE INFORMACIÓN HIDROMETEOROLÓGICA | G40: NO | H40: GRUPO DE ATENCIÓN AL CIUDADANO | I40: 43937 | L40: =IFERROR(WORKDAY(C40,R40,DiasNOLaborables),"") -> 43955 | M40: =+IF(C40="","",IF(I40="","",(IF(I40<=L40,"A TIEMPO","FUERA DE TIEMPO")))) -> A TIEMPO | N40: =IF(I40="","",NETWORKDAYS([4]Hoja1!C40+1,[4]Hoja1!P40,DiasNOLaborables)) -> 7 | R40: 20 | Z40: OFICINA DE CONTROL INTERNO | AE40: 43946
A41: 30 | B41: 20200402221515 | C41: 43923 | D41: WEB (MÓDULO DE SOLICITUD DE INFORMACIÓN HIDROMETEOROLÓGICA) | E41: SOLICITUD DE INFORMACIÓN Y DOCUMENTOS | F41: SOLICITUD DE INFORMACIÓN HIDROMETEOROLÓGICA | G41: NO | H41: GRUPO DE ATENCIÓN AL CIUDADANO | I41: 43937 | L41: =IFERROR(WORKDAY(C41,R41,DiasNOLaborables),"") -> 43956 | M41: =+IF(C41="","",IF(I41="","",(IF(I41<=L41,"A TIEMPO","FUERA DE TIEMPO")))) -> A TIEMPO | N41: =IF(I41="","",NETWORKDAYS([4]Hoja1!C41+1,[4]Hoja1!P41,DiasNOLaborables)) -> 7 | O41: =IF(NETWORKDAYS(L41+1,I41,DiasNOLaborables)<=0,"",NETWORKDAYS(L41+1,I41,DiasNOLaborables)) ->  | R41: 20 | Z41: OFICINA DE INFORMÁTICA | AE41: 43947
A42: 31 | B42: 20200402215042 | C42: 43923 | D42: WEB (MÓDULO DE SOLICITUD DE INFORMACIÓN HIDROMETEOROLÓGICA) | E42: SOLICITUD DE INFORMACIÓN Y DOCUMENTOS | F42: SOLICITUD DE INFORMACIÓN HIDROMETEOROLÓGICA | G42: NO | H42: GRUPO DE ATENCIÓN AL CIUDADANO | I42: 43937 | L42: =IFERROR(WORKDAY(C42,R42,DiasNOLaborables),"") -> 43956 | M42: =+IF(C42="","",IF(I42="","",(IF(I42<=L42,"A TIEMPO","FUERA DE TIEMPO")))) -> A TIEMPO | N42: =IF(I42="","",NETWORKDAYS([4]Hoja1!C42+1,[4]Hoja1!P42,DiasNOLaborables)) -> 7 | R42: 20 | Z42: OFICINA DEL SERVICIO DE PRONÓSTICOS Y ALERTAS | AE42: 43952
A43: 32 | B43: 20200402214516 | C43: 43923 | D43: WEB (MÓDULO DE SOLICITUD DE INFORMACIÓN HIDROMETEOROLÓGICA) | E43: SOLICITUD DE INFORMACIÓN Y DOCUMENTOS | F43: SOLICITUD DE INFORMACIÓN HIDROMETEOROLÓGICA | G43: NO | H43: GRUPO DE ATENCIÓN AL CIUDADANO | I43: 43937 | L43: =IFERROR(WORKDAY(C43,R43,DiasNOLaborables),"") -> 43956 | M43: =+IF(C43="","",IF(I43="","",(IF(I43<=L43,"A TIEMPO","FUERA DE TIEMPO")))) -> A TIEMPO | N43: =IF(I43="","",NETWORKDAYS([4]Hoja1!C43+1,[4]Hoja1!P43,DiasNOLaborables)) -> 7 | R43: 20 | Z43: SECRETARÍA GENERAL | AE43: 43953
A44: 33 | B44: 20200402214229 | C44: 43923 | D44: WEB (MÓDULO DE SOLICITUD DE INFORMACIÓN HIDROMETEOROLÓGICA) | E44: SOLICITUD DE INFORMACIÓN Y DOCUMENTOS | F44: SOLICITUD DE INFORMACIÓN HIDROMETEOROLÓGICA | G44: NO | H44: GRUPO DE ATENCIÓN AL CIUDADANO | I44: 43937 | L44: =IFERROR(WORKDAY(C44,R44,DiasNOLaborables),"") -> 43956 | M44: =+IF(C44="","",IF(I44="","",(IF(I44<=L44,"A TIEMPO","FUERA DE TIEMPO")))) -> A TIEMPO | N44: =IF(I44="","",NETWORKDAYS([4]Hoja1!C44+1,[4]Hoja1!P44,DiasNOLaborables)) -> 7 | R44: 20 | Z44: SUBDIRECCIÓN DE ECOSISTEMAS E INFORMACIÓN AMBIENTAL | AE44: 43954
A45: 34 | B45: 20200402213712 | C45: 43923 | D45: WEB (MÓDULO DE SOLICITUD DE INFORMACIÓN HIDROMETEOROLÓGICA) | E45: SOLICITUD DE INFORMACIÓN Y DOCUMENTOS | F45: SOLICITUD DE INFORMACIÓN HIDROMETEOROLÓGICA | G45: NO | H45: GRUPO DE ATENCIÓN AL CIUDADANO | I45: 43937 | L45: =IFERROR(WORKDAY(C45,R45,DiasNOLaborables),"") -> 43956 | M45: =+IF(C45="","",IF(I45="","",(IF(I45<=L45,"A TIEMPO","FUERA DE TIEMPO")))) -> A TIEMPO | N45: =IF(I45="","",NETWORKDAYS([4]Hoja1!C45+1,[4]Hoja1!P45,DiasNOLaborables)) -> 8 | R45: 20 | Z45: SUBDIRECCIÓN DE ESTUDIOS AMBIENTALES | AE45: 43960
A46: 35 | B46: 20200402213058 | C46: 43923 | D46: WEB (MÓDULO DE SOLICITUD DE INFORMACIÓN HIDROMETEOROLÓGICA) | E46: SOLICITUD DE INFORMACIÓN Y DOCUMENTOS | F46: SOLICITUD DE INFORMACIÓN HIDROMETEOROLÓGICA | G46: NO | H46: GRUPO DE ATENCIÓN AL CIUDADANO | I46: 43937 | L46: =IFERROR(WORKDAY(C46,R46,DiasNOLaborables),"") -> 43956 | M46: =+IF(C46="","",IF(I46="","",(IF(I46<=L46,"A TIEMPO","FUERA DE TIEMPO")))) -> A TIEMPO | N46: =IF(I46="","",NETWORKDAYS([4]Hoja1!C46+1,[4]Hoja1!P46,DiasNOLaborables)) -> 8 | R46: 20 | Z46: SUBDIRECCIÓN DE HIDROLOGÍA | AE46: 43961
A47: 36 | B47: 20200402212628 | C47: 43923 | D47: WEB (MÓDULO DE SOLICITUD DE INFORMACIÓN HIDROMETEOROLÓGICA) | E47: SOLICITUD DE INFORMACIÓN Y DOCUMENTOS | F47: SOLICITUD DE INFORMACIÓN HIDROMETEOROLÓGICA | G47: NO | H47: GRUPO DE ATENCIÓN AL CIUDADANO | I47: 43937 | L47: =IFERROR(WORKDAY(C47,R47,DiasNOLaborables),"") -> 43956 | M47: =+IF(C47="","",IF(I47="","",(IF(I47<=L47,"A TIEMPO","FUERA DE TIEMPO")))) -> A TIEMPO | N47: =IF(I47="","",NETWORKDAYS([4]Hoja1!C47+1,[4]Hoja1!P47,DiasNOLaborables)) -> 8 | R47: 20 | Z47: SUBDIRECCIÓN DE METEOROLOGÍA | AE47: 43967
A48: 37 | B48: 20200402211655 | C48: 43923 | D48: WEB (MÓDULO DE SOLICITUD DE INFORMACIÓN HIDROMETEOROLÓGICA) | E48: SOLICITUD DE INFORMACIÓN Y DOCUMENTOS | F48: SOLICITUD DE INFORMACIÓN HIDROMETEOROLÓGICA | G48: NO | H48: GRUPO DE ATENCIÓN AL CIUDADANO | I48: 43937 | L48: =IFERROR(WORKDAY(C48,R48,DiasNOLaborables),"") -> 43956 | M48: =+IF(C48="","",IF(I48="","",(IF(I48<=L48,"A TIEMPO","FUERA DE TIEMPO")))) -> A TIEMPO | N48: =IF(I48="","",NETWORKDAYS([4]Hoja1!C48+1,[4]Hoja1!P48,DiasNOLaborables)) -> 8 | R48: 20 | AE48: 43968
A49: 38 | B49: 20200402210952 | C49: 43923 | D49: WEB (MÓDULO DE SOLICITUD DE INFORMACIÓN HIDROMETEOROLÓGICA) | E49: SOLICITUD DE INFORMACIÓN Y DOCUMENTOS | F49: SOLICITUD DE INFORMACIÓN HIDROMETEOROLÓGICA | G49: NO | H49: GRUPO DE ATENCIÓN AL CIUDADANO | I49: 43937 | L49: =IFERROR(WORKDAY(C49,R49,DiasNOLaborables),"") -> 43956 | M49: =+IF(C49="","",IF(I49="","",(IF(I49<=L49,"A TIEMPO","FUERA DE TIEMPO")))) -> A TIEMPO | N49: =IF(I49="","",NETWORKDAYS([4]Hoja1!C49+1,[4]Hoja1!P49,DiasNOLaborables)) -> 8 | R49: 20 | Z49: TIPO DE REQUERIMIENTO | AA49: Término | AE49: 43974
A50: 39 | B50: 20200402210538 | C50: 43923 | D50: WEB (MÓDULO DE SOLICITUD DE INFORMACIÓN HIDROMETEOROLÓGICA) | E50: SOLICITUD DE INFORMACIÓN Y DOCUMENTOS | F50: SOLICITUD DE INFORMACIÓN HIDROMETEOROLÓGICA | G50: NO | H50: GRUPO DE ATENCIÓN AL CIUDADANO | I50: 43937 | L50: =IFERROR(WORKDAY(C50,R50,DiasNOLaborables),"") -> 43956 | M50: =+IF(C50="","",IF(I50="","",(IF(I50<=L50,"A TIEMPO","FUERA DE TIEMPO")))) -> A TIEMPO | N50: =IF(I50="","",NETWORKDAYS([4]Hoja1!C50+1,[4]Hoja1!P50,DiasNOLaborables)) -> 8 | R50: 20 | Z50: AGRADECIMIENTO/FELICITACION | AA50: 15 | AE50: 43975
A51: 40 | B51: 20200402205800 | C51: 43923 | D51: WEB (MÓDULO DE SOLICITUD DE INFORMACIÓN HIDROMETEOROLÓGICA) | E51: SOLICITUD DE INFORMACIÓN Y DOCUMENTOS | F51: SOLICITUD DE INFORMACIÓN HIDROMETEOROLÓGICA | G51: NO | H51: GRUPO DE ATENCIÓN AL CIUDADANO | I51: 43937 | L51: =IFERROR(WORKDAY(C51,R51,DiasNOLaborables),"") -> 43956 | M51: =+IF(C51="","",IF(I51="","",(IF(I51<=L51,"A TIEMPO","FUERA DE TIEMPO")))) -> A TIEMPO | N51: =IF(I51="","",NETWORKDAYS([4]Hoja1!C51+1,[4]Hoja1!P51,DiasNOLaborables)) -> 8 | R51: 20 | Z51: CERTIFICACIONES DE TIEMPO, CLIMA Y EVENTOS HIDROLÓGICOS | AA51: 30 | AE51: 43976
A52: 41 | B52: 20200402193907 | C52: 43923 | D52: WEB (MÓDULO DE SOLICITUD DE INFORMACIÓN HIDROMETEOROLÓGICA) | E52: SOLICITUD DE INFORMACIÓN Y DOCUMENTOS | F52: SOLICITUD DE INFORMACIÓN HIDROMETEOROLÓGICA | G52: NO | H52: GRUPO DE ATENCIÓN AL CIUDADANO | I52: 43937 | L52: =IFERROR(WORKDAY(C52,R52,DiasNOLaborables),"") -> 43956 | M52: =+IF(C52="","",IF(I52="","",(IF(I52<=L52,"A TIEMPO","FUERA DE TIEMPO")))) -> A TIEMPO | N52: =IF(I52="","",NETWORKDAYS([4]Hoja1!C52+1,[4]Hoja1!P52,DiasNOLaborables)) -> 8 | R52: 20 | Z52: CONSULTA | AA52: 35 | AE52: 43981
A53: 42 | B53: 20200402181642 | C53: 43923 | D53: WEB (MÓDULO DE SOLICITUD DE INFORMACIÓN HIDROMETEOROLÓGICA) | E53: SOLICITUD DE INFORMACIÓN Y DOCUMENTOS | F53: SOLICITUD DE INFORMACIÓN HIDROMETEOROLÓGICA | G53: NO | H53: GRUPO DE ATENCIÓN AL CIUDADANO | I53: 43937 | L53: =IFERROR(WORKDAY(C53,R53,DiasNOLaborables),"") -> 43956 | M53: =+IF(C53="","",IF(I53="","",(IF(I53<=L53,"A TIEMPO","FUERA DE TIEMPO")))) -> A TIEMPO | N53: =IF(I53="","",NETWORKDAYS([4]Hoja1!C53+1,[4]Hoja1!P53,DiasNOLaborables)) -> 8 | R53: 20 | Z53: DENUNCIA | AA53: 15 | AE53: 43982
A54: 43 | B54: 20200402180644 | C54: 43923 | D54: WEB (MÓDULO DE SOLICITUD DE INFORMACIÓN HIDROMETEOROLÓGICA) | E54: SOLICITUD DE INFORMACIÓN Y DOCUMENTOS | F54: SOLICITUD DE INFORMACIÓN HIDROMETEOROLÓGICA | G54: NO | H54: GRUPO DE ATENCIÓN AL CIUDADANO | I54: 43937 | L54: =IFERROR(WORKDAY(C54,R54,DiasNOLaborables),"") -> 43956 | M54: =+IF(C54="","",IF(I54="","",(IF(I54<=L54,"A TIEMPO","FUERA DE TIEMPO")))) -> A TIEMPO | N54: =IF(I54="","",NETWORKDAYS([4]Hoja1!C54+1,[4]Hoja1!P54,DiasNOLaborables)) -> 5 | R54: 20 | Z54: PETICIÓN | AA54: 30 | AE54: 43988
A55: 44 | B55: 20200402175510 | C55: 43923 | D55: WEB (MÓDULO DE SOLICITUD DE INFORMACIÓN HIDROMETEOROLÓGICA) | E55: SOLICITUD DE INFORMACIÓN Y DOCUMENTOS | F55: SOLICITUD DE INFORMACIÓN HIDROMETEOROLÓGICA | G55: NO | H55: GRUPO DE ATENCIÓN AL CIUDADANO | I55: 43937 | L55: =IFERROR(WORKDAY(C55,R55,DiasNOLaborables),"") -> 43956 | M55: =+IF(C55="","",IF(I55="","",(IF(I55<=L55,"A TIEMPO","FUERA DE TIEMPO")))) -> A TIEMPO | N55: =IF(I55="","",NETWORKDAYS([4]Hoja1!C55+1,[4]Hoja1!P55,DiasNOLaborables)) -> 5 | R55: 20 | Z55: PETICIÓN ENTRE AUTORIDADES | AA55: 10 | AE55: 43989
A56: 45 | B56: 20200402175222 | C56: 43923 | D56: WEB (MÓDULO DE SOLICITUD DE INFORMACIÓN HIDROMETEOROLÓGICA) | E56: SOLICITUD DE INFORMACIÓN Y DOCUMENTOS | F56: SOLICITUD DE INFORMACIÓN HIDROMETEOROLÓGICA | G56: NO | H56: GRUPO DE ATENCIÓN AL CIUDADANO | I56: 43937 | L56: =IFERROR(WORKDAY(C56,R56,DiasNOLaborables),"") -> 43956 | M56: =+IF(C56="","",IF(I56="","",(IF(I56<=L56,"A TIEMPO","FUERA DE TIEMPO")))) -> A TIEMPO | N56: =IF(I56="","",NETWORKDAYS([4]Hoja1!C56+1,[4]Hoja1!P56,DiasNOLaborables)) -> 5 | R56: 20 | Z56: PETICION VERBAL | AA56: 15 | AE56: 43995
A57: 46 | B57: 20200402174339 | C57: 43923 | D57: WEB (MÓDULO DE SOLICITUD DE INFORMACIÓN HIDROMETEOROLÓGICA) | E57: SOLICITUD DE INFORMACIÓN Y DOCUMENTOS | F57: SOLICITUD DE INFORMACIÓN HIDROMETEOROLÓGICA | G57: NO | H57: GRUPO DE ATENCIÓN AL CIUDADANO | I57: 43937 | L57: =IFERROR(WORKDAY(C57,R57,DiasNOLaborables),"") -> 43956 | M57: =+IF(C57="","",IF(I57="","",(IF(I57<=L57,"A TIEMPO","FUERA DE TIEMPO")))) -> A TIEMPO | N57: =IF(I57="","",NETWORKDAYS([4]Hoja1!C57+1,[4]Hoja1!P57,DiasNOLaborables)) -> 7 | R57: 20 | Z57: QUEJA | AA57: 15 | AE57: 43996
A58: 47 | B58: 20200402174012 | C58: 43923 | D58: WEB (MÓDULO DE SOLICITUD DE INFORMACIÓN HIDROMETEOROLÓGICA) | E58: SOLICITUD DE INFORMACIÓN Y DOCUMENTOS | F58: SOLICITUD DE INFORMACIÓN HIDROMETEOROLÓGICA | G58: NO | H58: GRUPO DE ATENCIÓN AL CIUDADANO | I58: 43937 | L58: =IFERROR(WORKDAY(C58,R58,DiasNOLaborables),"") -> 43956 | M58: =+IF(C58="","",IF(I58="","",(IF(I58<=L58,"A TIEMPO","FUERA DE TIEMPO")))) -> A TIEMPO | N58: =IF(I58="","",NETWORKDAYS([4]Hoja1!C58+1,[4]Hoja1!P58,DiasNOLaborables)) -> 7 | R58: 20 | Z58: RECLAMO | AA58: 15 | AE58: 43997
A59: 48 | B59: 20200402173613 | C59: 43923 | D59: WEB (MÓDULO DE SOLICITUD DE INFORMACIÓN HIDROMETEOROLÓGICA) | E59: SOLICITUD DE INFORMACIÓN Y DOCUMENTOS | F59: SOLICITUD DE INFORMACIÓN HIDROMETEOROLÓGICA | G59: NO | H59: GRUPO DE ATENCIÓN AL CIUDADANO | I59: 43937 | L59: =IFERROR(WORKDAY(C59,R59,DiasNOLaborables),"") -> 43956 | M59: =+IF(C59="","",IF(I59="","",(IF(I59<=L59,"A TIEMPO","FUERA DE TIEMPO")))) -> A TIEMPO | N59: =IF(I59="","",NETWORKDAYS([4]Hoja1!C59+1,[4]Hoja1!P59,DiasNOLaborables)) -> 7 | R59: 20 | Z59: REMISIÓN POR COMPETENCIA | AA59: 5 | AE59: 44002
A60: 49 | B60: 20200402173029 | C60: 43923 | D60: WEB (MÓDULO DE SOLICITUD DE INFORMACIÓN HIDROMETEOROLÓGICA) | E60: SOLICITUD DE INFORMACIÓN Y DOCUMENTOS | F60: SOLICITUD DE INFORMACIÓN HIDROMETEOROLÓGICA | G60: NO | H60: GRUPO DE ATENCIÓN AL CIUDADANO | I60: 43937 | L60: =IFERROR(WORKDAY(C60,R60,DiasNOLaborables),"") -> 43956 | M60: =+IF(C60="","",IF(I60="","",(IF(I60<=L60,"A TIEMPO","FUERA DE TIEMPO")))) -> A TIEMPO | N60: =IF(I60="","",NETWORKDAYS([4]Hoja1!C60+1,[4]Hoja1!P60,DiasNOLaborables)) -> 7 | R60: 20 | Z60: SOLICITUD CONGRESITAS | AA60: 5 | AE60: 44003
A61: 50 | B61: 20200402171854 | C61: 43923 | D61: WEB (MÓDULO DE SOLICITUD DE INFORMACIÓN HIDROMETEOROLÓGICA) | E61: SOLICITUD DE INFORMACIÓN Y DOCUMENTOS | F61: SOLICITUD DE INFORMACIÓN HIDROMETEOROLÓGICA | G61: NO | H61: GRUPO DE ATENCIÓN AL CIUDADANO | I61: 43937 | L61: =IFERROR(WORKDAY(C61,R61,DiasNOLaborables),"") -> 43956 | M61: =+IF(C61="","",IF(I61="","",(IF(I61<=L61,"A TIEMPO","FUERA DE TIEMPO")))) -> A TIEMPO | N61: =IF(I61="","",NETWORKDAYS([4]Hoja1!C61+1,[4]Hoja1!P61,DiasNOLaborables)) -> 7 | R61: 20 | Z61: SOLICITUD DE INFORMACIÓN Y DOCUMENTOS | AA61: 20 | AE61: 44004
A62: 51 | B62: 20200402171252 | C62: 43923 | D62: WEB (MÓDULO DE SOLICITUD DE INFORMACIÓN HIDROMETEOROLÓGICA) | E62: SOLICITUD DE INFORMACIÓN Y DOCUMENTOS | F62: SOLICITUD DE INFORMACIÓN HIDROMETEOROLÓGICA | G62: NO | H62: GRUPO DE ATENCIÓN AL CIUDADANO | I62: 43937 | L62: =IFERROR(WORKDAY(C62,R62,DiasNOLaborables),"") -> 43956 | M62: =+IF(C62="","",IF(I62="","",(IF(I62<=L62,"A TIEMPO","FUERA DE TIEMPO")))) -> A TIEMPO | N62: =IF(I62="","",NETWORKDAYS([4]Hoja1!C62+1,[4]Hoja1!P62,DiasNOLaborables)) -> 7 | R62: 20 | Z62: SOLICITUD JUDICIAL | AA62: 5 | AE62: 44009
A63: 52 | B63: 20200402170736 | C63: 43923 | D63: WEB (MÓDULO DE SOLICITUD DE INFORMACIÓN HIDROMETEOROLÓGICA) | E63: SOLICITUD DE INFORMACIÓN Y DOCUMENTOS | F63: SOLICITUD DE INFORMACIÓN HIDROMETEOROLÓGICA | G63: NO | H63: GRUPO DE ATENCIÓN AL CIUDADANO | I63: 43937 | L63: =IFERROR(WORKDAY(C63,R63,DiasNOLaborables),"") -> 43956 | M63: =+IF(C63="","",IF(I63="","",(IF(I63<=L63,"A TIEMPO","FUERA DE TIEMPO")))) -> A TIEMPO | N63: =IF(I63="","",NETWORKDAYS([4]Hoja1!C63+1,[4]Hoja1!P63,DiasNOLaborables)) -> 7 | R63: 20 | Z63: SUGERENCIA | AA63: 15 | AE63: 44010
A64: 53 | B64: 20200402170309 | C64: 43923 | D64: WEB (MÓDULO DE SOLICITUD DE INFORMACIÓN HIDROMETEOROLÓGICA) | E64: SOLICITUD DE INFORMACIÓN Y DOCUMENTOS | F64: SOLICITUD DE INFORMACIÓN HIDROMETEOROLÓGICA | G64: NO | H64: GRUPO DE ATENCIÓN AL CIUDADANO | I64: 43937 | L64: =IFERROR(WORKDAY(C64,R64,DiasNOLaborables),"") -> 43956 | M64: =+IF(C64="","",IF(I64="","",(IF(I64<=L64,"A TIEMPO","FUERA DE TIEMPO")))) -> A TIEMPO | N64: =IF(I64="","",NETWORKDAYS([4]Hoja1!C64+1,[4]Hoja1!P64,DiasNOLaborables)) -> 7 | R64: 20 | AE64: 44011
A65: 54 | B65: 20200402170113 | C65: 43923 | D65: WEB (MÓDULO DE SOLICITUD DE INFORMACIÓN HIDROMETEOROLÓGICA) | E65: SOLICITUD DE INFORMACIÓN Y DOCUMENTOS | F65: SOLICITUD DE INFORMACIÓN HIDROMETEOROLÓGICA | G65: NO | H65: GRUPO DE ATENCIÓN AL CIUDADANO | I65: 43937 | L65: =IFERROR(WORKDAY(C65,R65,DiasNOLaborables),"") -> 43956 | M65: =+IF(C65="","",IF(I65="","",(IF(I65<=L65,"A TIEMPO","FUERA DE TIEMPO")))) -> A TIEMPO | N65: =IF(I65="","",NETWORKDAYS([4]Hoja1!C65+1,[4]Hoja1!P65,DiasNOLaborables)) -> 7 | R65: 20 | Z65: PRODUCTO O SERVICIO | AE65: 44016
A66: 55 | B66: 20200402165033 | C66: 43923 | D66: WEB (MÓDULO DE SOLICITUD DE INFORMACIÓN HIDROMETEOROLÓGICA) | E66: SOLICITUD DE INFORMACIÓN Y DOCUMENTOS | F66: SOLICITUD DE INFORMACIÓN HIDROMETEOROLÓGICA | G66: NO | H66: GRUPO DE ATENCIÓN AL CIUDADANO | I66: 43937 | L66: =IFERROR(WORKDAY(C66,R66,DiasNOLaborables),"") -> 43956 | M66: =+IF(C66="","",IF(I66="","",(IF(I66<=L66,"A TIEMPO","FUERA DE TIEMPO")))) -> A TIEMPO | N66: =IF(I66="","",NETWORKDAYS([4]Hoja1!C66+1,[4]Hoja1!P66,DiasNOLaborables)) -> 7 | R66: 20 | Z66: ACREDITACIÓN DE LABORATORIOS | AE66: 44017
A67: 56 | B67: 20200402164533 | C67: 43923 | D67: WEB (MÓDULO DE SOLICITUD DE INFORMACIÓN HIDROMETEOROLÓGICA) | E67: SOLICITUD DE INFORMACIÓN Y DOCUMENTOS | F67: SOLICITUD DE INFORMACIÓN HIDROMETEOROLÓGICA | G67: NO | H67: GRUPO DE ATENCIÓN AL CIUDADANO | I67: 43937 | L67: =IFERROR(WORKDAY(C67,R67,DiasNOLaborables),"") -> 43956 | M67: =+IF(C67="","",IF(I67="","",(IF(I67<=L67,"A TIEMPO","FUERA DE TIEMPO")))) -> A TIEMPO | N67: =IF(I67="","",NETWORKDAYS([4]Hoja1!C67+1,[4]Hoja1!P67,DiasNOLaborables)) -> 7 | R67: 20 | Z67: ADMINISTRATIVA | AE67: 44023
A68: 57 | B68: 20200402122526 | C68: 43923 | D68: WEB (MÓDULO DE SOLICITUD DE INFORMACIÓN HIDROMETEOROLÓGICA) | E68: SOLICITUD DE INFORMACIÓN Y DOCUMENTOS | F68: SOLICITUD DE INFORMACIÓN HIDROMETEOROLÓGICA | G68: NO | H68: GRUPO DE ATENCIÓN AL CIUDADANO | I68: 43937 | L68: =IFERROR(WORKDAY(C68,R68,DiasNOLaborables),"") -> 43956 | M68: =+IF(C68="","",IF(I68="","",(IF(I68<=L68,"A TIEMPO","FUERA DE TIEMPO")))) -> A TIEMPO | N68: =IF(I68="","",NETWORKDAYS([4]Hoja1!C68+1,[4]Hoja1!P68,DiasNOLaborables)) -> 7 | R68: 20 | Z68: AGUAS SUBTERRANEAS | AE68: 44024
A69: 58 | B69: 20200402121531 | C69: 43923 | D69: WEB (MÓDULO DE SOLICITUD DE INFORMACIÓN HIDROMETEOROLÓGICA) | E69: SOLICITUD DE INFORMACIÓN Y DOCUMENTOS | F69: SOLICITUD DE INFORMACIÓN HIDROMETEOROLÓGICA | G69: NO | H69: GRUPO DE ATENCIÓN AL CIUDADANO | I69: 43937 | L69: =IFERROR(WORKDAY(C69,R69,DiasNOLaborables),"") -> 43956 | M69: =+IF(C69="","",IF(I69="","",(IF(I69<=L69,"A TIEMPO","FUERA DE TIEMPO")))) -> A TIEMPO | N69: =IF(I69="","",NETWORKDAYS([4]Hoja1!C69+1,[4]Hoja1!P69,DiasNOLaborables)) -> 7 | R69: 20 | Z69: ASESORÍAS Y CHARLAS | AE69: 44030
A70: 59 | B70: 20200402120555 | C70: 43923 | D70: WEB (MÓDULO DE SOLICITUD DE INFORMACIÓN HIDROMETEOROLÓGICA) | E70: SOLICITUD DE INFORMACIÓN Y DOCUMENTOS | F70: SOLICITUD DE INFORMACIÓN HIDROMETEOROLÓGICA | G70: NO | H70: GRUPO DE ATENCIÓN AL CIUDADANO | I70: 43937 | L70: =IFERROR(WORKDAY(C70,R70,DiasNOLaborables),"") -> 43956 | M70: =+IF(C70="","",IF(I70="","",(IF(I70<=L70,"A TIEMPO","FUERA DE TIEMPO")))) -> A TIEMPO | N70: =IF(I70="","",NETWORKDAYS([4]Hoja1!C70+1,[4]Hoja1!P70,DiasNOLaborables)) -> 7 | R70: 20 | Z70: BOSQUES | AE70: 44031
A71: 60 | B71: 20200402120307 | C71: 43923 | D71: WEB (MÓDULO DE SOLICITUD DE INFORMACIÓN HIDROMETEOROLÓGICA) | E71: SOLICITUD DE INFORMACIÓN Y DOCUMENTOS | F71: SOLICITUD DE INFORMACIÓN HIDROMETEOROLÓGICA | G71: NO | H71: GRUPO DE ATENCIÓN AL CIUDADANO | I71: 43937 | L71: =IFERROR(WORKDAY(C71,R71,DiasNOLaborables),"") -> 43956 | M71: =+IF(C71="","",IF(I71="","",(IF(I71<=L71,"A TIEMPO","FUERA DE TIEMPO")))) -> A TIEMPO | N71: =IF(I71="","",NETWORKDAYS([4]Hoja1!C71+1,[4]Hoja1!P71,DiasNOLaborables)) -> 7 | R71: 20 | Z71: CAMBIO CLIMÁTICO | AE71: 44032
A72: 61 | B72: 20200402115841 | C72: 43923 | D72: WEB (MÓDULO DE SOLICITUD DE INFORMACIÓN HIDROMETEOROLÓGICA) | E72: SOLICITUD DE INFORMACIÓN Y DOCUMENTOS | F72: SOLICITUD DE INFORMACIÓN HIDROMETEOROLÓGICA | G72: NO | H72: GRUPO DE ATENCIÓN AL CIUDADANO | I72: 43937 | L72: =IFERROR(WORKDAY(C72,R72,DiasNOLaborables),"") -> 43956 | M72: =+IF(C72="","",IF(I72="","",(IF(I72<=L72,"A TIEMPO","FUERA DE TIEMPO")))) -> A TIEMPO | N72: =IF(I72="","",NETWORKDAYS([4]Hoja1!C72+1,[4]Hoja1!P72,DiasNOLaborables)) -> 7 | R72: 20 | Z72: CERTIFICACIONES DE TIEMPO Y CLIMA | AE72: 44037
A73: 62 | B73: 20200402105509 | C73: 43923 | D73: WEB (MÓDULO DE SOLICITUD DE INFORMACIÓN HIDROMETEOROLÓGICA) | E73: SOLICITUD DE INFORMACIÓN Y DOCUMENTOS | F73: SOLICITUD DE INFORMACIÓN HIDROMETEOROLÓGICA | G73: NO | H73: GRUPO DE ATENCIÓN AL CIUDADANO | I73: 43937 | L73: =IFERROR(WORKDAY(C73,R73,DiasNOLaborables),"") -> 43956 | M73: =+IF(C73="","",IF(I73="","",(IF(I73<=L73,"A TIEMPO","FUERA DE TIEMPO")))) -> A TIEMPO | N73: =IF(I73="","",NETWORKDAYS([4]Hoja1!C73+1,[4]Hoja1!P73,DiasNOLaborables)) -> 7 | R73: 20 | Z73: CERTIFICACIONES HIDROLOGICAS | AE73: 44038
A74: 63 | B74: 20200403233023 | C74: 43924 | D74: WEB (MÓDULO DE SOLICITUD DE INFORMACIÓN HIDROMETEOROLÓGICA) | E74: SOLICITUD DE INFORMACIÓN Y DOCUMENTOS | F74: SOLICITUD DE INFORMACIÓN HIDROMETEOROLÓGICA | G74: NO | H74: GRUPO DE ATENCIÓN AL CIUDADANO | I74: 43938 | L74: =IFERROR(WORKDAY(C74,R74,DiasNOLaborables),"") -> 43957 | M74: =+IF(C74="","",IF(I74="","",(IF(I74<=L74,"A TIEMPO","FUERA DE TIEMPO")))) -> A TIEMPO | N74: =IF(I74="","",NETWORKDAYS([4]Hoja1!C74+1,[4]Hoja1!P74,DiasNOLaborables)) -> 8 | R74: 20 | Z74: CLIMATOLOGÍA | AE74: 44044
A75: 64 | B75: 20200403232406 | C75: 43924 | D75: WEB (MÓDULO DE SOLICITUD DE INFORMACIÓN HIDROMETEOROLÓGICA) | E75: SOLICITUD DE INFORMACIÓN Y DOCUMENTOS | F75: SOLICITUD DE INFORMACIÓN HIDROMETEOROLÓGICA | G75: NO | H75: GRUPO DE ATENCIÓN AL CIUDADANO | I75: 43938 | L75: =IFERROR(WORKDAY(C75,R75,DiasNOLaborables),"") -> 43957 | M75: =+IF(C75="","",IF(I75="","",(IF(I75<=L75,"A TIEMPO","FUERA DE TIEMPO")))) -> A TIEMPO | N75: =IF(I75="","",NETWORKDAYS([4]Hoja1!C75+1,[4]Hoja1!P75,DiasNOLaborables)) -> 8 | R75: 20 | Z75: ERA | AA75: EVALUACIÓN REGIONAL DEL AGUA | AE75: 44045
A76: 65 | B76: 20200403231223 | C76: 43924 | D76: WEB (MÓDULO DE SOLICITUD DE INFORMACIÓN HIDROMETEOROLÓGICA) | E76: SOLICITUD DE INFORMACIÓN Y DOCUMENTOS | F76: SOLICITUD DE INFORMACIÓN HIDROMETEOROLÓGICA | G76: NO | H76: GRUPO DE ATENCIÓN AL CIUDADANO | I76: 43938 | L76: =IFERROR(WORKDAY(C76,R76,DiasNOLaborables),"") -> 43957 | M76: =+IF(C76="","",IF(I76="","",(IF(I76<=L76,"A TIEMPO","FUERA DE TIEMPO")))) -> A TIEMPO | N76: =IF(I76="","",NETWORKDAYS([4]Hoja1!C76+1,[4]Hoja1!P76,DiasNOLaborables)) -> 8 | R76: 20 | Z76: ESTUDIO NACIONAL DEL AGUA | AE76: 44051
A77: 66 | B77: 20200403230140 | C77: 43924 | D77: WEB (MÓDULO DE SOLICITUD DE INFORMACIÓN HIDROMETEOROLÓGICA) | E77: SOLICITUD DE INFORMACIÓN Y DOCUMENTOS | F77: SOLICITUD DE INFORMACIÓN HIDROMETEOROLÓGICA | G77: NO | H77: GRUPO DE ATENCIÓN AL CIUDADANO | I77: 43938 | L77: =IFERROR(WORKDAY(C77,R77,DiasNOLaborables),"") -> 43957 | M77: =+IF(C77="","",IF(I77="","",(IF(I77<=L77,"A TIEMPO","FUERA DE TIEMPO")))) -> A TIEMPO | N77: =IF(I77="","",NETWORKDAYS([4]Hoja1!C77+1,[4]Hoja1!P77,DiasNOLaborables)) -> 8 | R77: 20 | Z77: INFORMES AMBIENTALES | AE77: 44052
A78: =IF(B77<>"",A77+1,"") -> 67 | B78: 20200403225434 | C78: 43924 | D78: WEB (MÓDULO DE SOLICITUD DE INFORMACIÓN HIDROMETEOROLÓGICA) | E78: SOLICITUD DE INFORMACIÓN Y DOCUMENTOS | F78: SOLICITUD DE INFORMACIÓN HIDROMETEOROLÓGICA | G78: NO | H78: GRUPO DE ATENCIÓN AL CIUDADANO | I78: 43938 | L78: =IFERROR(WORKDAY(C78,R78,DiasNOLaborables),"") -> 43957 | M78: =+IF(C78="","",IF(I78="","",(IF(I78<=L78,"A TIEMPO","FUERA DE TIEMPO")))) -> A TIEMPO | N78: =IF(I78="","",NETWORKDAYS([4]Hoja1!C78+1,[4]Hoja1!P78,DiasNOLaborables)) -> 8 | R78: 20 | Z78: JURIDICO | AE78: 44058
A79: 68 | B79: 20200403224644 | C79: 43924 | D79: WEB (MÓDULO DE SOLICITUD DE INFORMACIÓN HIDROMETEOROLÓGICA) | E79: SOLICITUD DE INFORMACIÓN Y DOCUMENTOS | F79: SOLICITUD DE INFORMACIÓN HIDROMETEOROLÓGICA | G79: NO | H79: GRUPO DE ATENCIÓN AL CIUDADANO | I79: 43938 | L79: =IFERROR(WORKDAY(C79,R79,DiasNOLaborables),"") -> 43957 | M79: =+IF(C79="","",IF(I79="","",(IF(I79<=L79,"A TIEMPO","FUERA DE TIEMPO")))) -> A TIEMPO | N79: =IF(I79="","",NETWORKDAYS([4]Hoja1!C79+1,[4]Hoja1!P79,DiasNOLaborables)) -> 9 | R79: 20 | Z79: LABORATORIO DE CALIDAD AMBIENTAL | AE79: 44059
A80: 69 | B80: 20200403224108 | C80: 43924 | D80: WEB (MÓDULO DE SOLICITUD DE INFORMACIÓN HIDROMETEOROLÓGICA) | E80: SOLICITUD DE INFORMACIÓN Y DOCUMENTOS | F80: SOLICITUD DE INFORMACIÓN HIDROMETEOROLÓGICA | G80: NO | H80: GRUPO DE ATENCIÓN AL CIUDADANO | I80: 43938 | L80: =IFERROR(WORKDAY(C80,R80,DiasNOLaborables),"") -> 43957 | M80: =+IF(C80="","",IF(I80="","",(IF(I80<=L80,"A TIEMPO","FUERA DE TIEMPO")))) -> A TIEMPO | N80: =IF(I80="","",NETWORKDAYS([4]Hoja1!C80+1,[4]Hoja1!P80,DiasNOLaborables)) -> 9 | R80: 20 | Z80: MEDIOS DE COMUNICACIÓN | AE80: 44060
A81: 70 | B81: 20200403223412 | C81: 43924 | D81: WEB (MÓDULO DE SOLICITUD DE INFORMACIÓN HIDROMETEOROLÓGICA) | E81: SOLICITUD DE INFORMACIÓN Y DOCUMENTOS | F81: SOLICITUD DE INFORMACIÓN HIDROMETEOROLÓGICA | G81: NO | H81: GRUPO DE ATENCIÓN AL CIUDADANO | I81: 43938 | L81: =IFERROR(WORKDAY(C81,R81,DiasNOLaborables),"") -> 43957 | M81: =+IF(C81="","",IF(I81="","",(IF(I81<=L81,"A TIEMPO","FUERA DE TIEMPO")))) -> A TIEMPO | N81: =IF(I81="","",NETWORKDAYS([4]Hoja1!C81+1,[4]Hoja1!P81,DiasNOLaborables)) -> 9 | R81: 20 | Z81: METEOROLOGÍA AERONAÚTICA | AE81: 44065
A82: 71 | B82: 20200403222844 | C82: 43924 | D82: WEB (MÓDULO DE SOLICITUD DE INFORMACIÓN HIDROMETEOROLÓGICA) | E82: SOLICITUD DE INFORMACIÓN Y DOCUMENTOS | F82: SOLICITUD DE INFORMACIÓN HIDROMETEOROLÓGICA | G82: NO | H82: GRUPO DE ATENCIÓN AL CIUDADANO | I82: 43938 | L82: =IFERROR(WORKDAY(C82,R82,DiasNOLaborables),"") -> 43957 | M82: =+IF(C82="","",IF(I82="","",(IF(I82<=L82,"A TIEMPO","FUERA DE TIEMPO")))) -> A TIEMPO | N82: =IF(I82="","",NETWORKDAYS([4]Hoja1!C82+1,[4]Hoja1!P82,DiasNOLaborables)) -> 9 | R82: 20 | Z82: MODELACIÓN HIDROLÓGICA | AE82: 44066
A83: 72 | B83: 20200403221549 | C83: 43924 | D83: WEB (MÓDULO DE SOLICITUD DE INFORMACIÓN HIDROMETEOROLÓGICA) | E83: SOLICITUD DE INFORMACIÓN Y DOCUMENTOS | F83: SOLICITUD DE INFORMACIÓN HIDROMETEOROLÓGICA | G83: NO | H83: GRUPO DE ATENCIÓN AL CIUDADANO | I83: 43938 | L83: =IFERROR(WORKDAY(C83,R83,DiasNOLaborables),"") -> 43957 | M83: =+IF(C83="","",IF(I83="","",(IF(I83<=L83,"A TIEMPO","FUERA DE TIEMPO")))) -> A TIEMPO | N83: =IF(I83="","",NETWORKDAYS([4]Hoja1!C83+1,[4]Hoja1!P83,DiasNOLaborables)) -> 9 | R83: 20 | Z83: MODELAMIENTO METEOROLÓGICO | AE83: 44072
A84: 73 | B84: 20200403184843 | C84: 43924 | D84: WEB (MÓDULO DE SOLICITUD DE INFORMACIÓN HIDROMETEOROLÓGICA) | E84: SOLICITUD DE INFORMACIÓN Y DOCUMENTOS | F84: SOLICITUD DE INFORMACIÓN HIDROMETEOROLÓGICA | G84: NO | H84: GRUPO DE ATENCIÓN AL CIUDADANO | I84: 43938 | L84: =IFERROR(WORKDAY(C84,R84,DiasNOLaborables),"") -> 43957 | M84: =+IF(C84="","",IF(I84="","",(IF(I84<=L84,"A TIEMPO","FUERA DE TIEMPO")))) -> A TIEMPO | N84: =IF(I84="","",NETWORKDAYS([4]Hoja1!C84+1,[4]Hoja1!P84,DiasNOLaborables)) -> 9 | R84: 20 | Z84: OPERACIÓN DE REDES | AE84: 44073
A85: 74 | B85: 20200403184011 | C85: 43924 | D85: WEB (MÓDULO DE SOLICITUD DE INFORMACIÓN HIDROMETEOROLÓGICA) | E85: SOLICITUD DE INFORMACIÓN Y DOCUMENTOS | F85: SOLICITUD DE INFORMACIÓN HIDROMETEOROLÓGICA | G85: NO | H85: GRUPO DE ATENCIÓN AL CIUDADANO | I85: 43938 | L85: =IFERROR(WORKDAY(C85,R85,DiasNOLaborables),"") -> 43957 | M85: =+IF(C85="","",IF(I85="","",(IF(I85<=L85,"A TIEMPO","FUERA DE TIEMPO")))) -> A TIEMPO | N85: =IF(I85="","",NETWORKDAYS([4]Hoja1!C85+1,[4]Hoja1!P85,DiasNOLaborables)) -> 9 | R85: 20 | Z85: PRONÓSTICOS Y ALERTAS | AE85: 44079
A86: 75 | B86: 20200403182605 | C86: 43924 | D86: WEB (MÓDULO DE SOLICITUD DE INFORMACIÓN HIDROMETEOROLÓGICA) | E86: SOLICITUD DE INFORMACIÓN Y DOCUMENTOS | F86: SOLICITUD DE INFORMACIÓN HIDROMETEOROLÓGICA | G86: NO | H86: GRUPO DE ATENCIÓN AL CIUDADANO | I86: 43938 | L86: =IFERROR(WORKDAY(C86,R86,DiasNOLaborables),"") -> 43957 | M86: =+IF(C86="","",IF(I86="","",(IF(I86<=L86,"A TIEMPO","FUERA DE TIEMPO")))) -> A TIEMPO | N86: =IF(I86="","",NETWORKDAYS([4]Hoja1!C86+1,[4]Hoja1!P86,DiasNOLaborables)) -> 9 | R86: 20 | Z86: REGISTROS AMBIENTALES | AE86: 44080
A87: 76 | B87: 20200403173519 | C87: 43924 | D87: WEB (MÓDULO DE SOLICITUD DE INFORMACIÓN HIDROMETEOROLÓGICA) | E87: SOLICITUD DE INFORMACIÓN Y DOCUMENTOS | F87: SOLICITUD DE INFORMACIÓN HIDROMETEOROLÓGICA | G87: NO | H87: GRUPO DE ATENCIÓN AL CIUDADANO | I87: 43938 | L87: =IFERROR(WORKDAY(C87,R87,DiasNOLaborables),"") -> 43957 | M87: =+IF(C87="","",IF(I87="","",(IF(I87<=L87,"A TIEMPO","FUERA DE TIEMPO")))) -> A TIEMPO | N87: =IF(I87="","",NETWORKDAYS([4]Hoja1!C87+1,[4]Hoja1!P87,DiasNOLaborables)) -> 10 | R87: 20 | Z87: SEDIMENTOS | AE87: 44086
A88: 77 | B88: 20200403095900 | C88: 43924 | D88: WEB (MÓDULO DE SOLICITUD DE INFORMACIÓN HIDROMETEOROLÓGICA) | E88: SOLICITUD DE INFORMACIÓN Y DOCUMENTOS | F88: SOLICITUD DE INFORMACIÓN HIDROMETEOROLÓGICA | G88: NO | H88: GRUPO DE ATENCIÓN AL CIUDADANO | I88: 43938 | L88: =IFERROR(WORKDAY(C88,R88,DiasNOLaborables),"") -> 43957 | M88: =+IF(C88="","",IF(I88="","",(IF(I88<=L88,"A TIEMPO","FUERA DE TIEMPO")))) -> A TIEMPO | N88: =IF(I88="","",NETWORKDAYS([4]Hoja1!C88+1,[4]Hoja1!P88,DiasNOLaborables)) -> 10 | R88: 20 | Z88: SIA | AA88: SISTEMA DE INFORMACIÓN AMBIENTAL | AE88: 44087
A89: 78 | B89: 20209050029162 | C89: 43924 | D89: MODULO CONTACTENOS | E89: SOLICITUD DE INFORMACIÓN Y DOCUMENTOS | F89: SOLICITUD DE INFORMACIÓN HIDROMETEOROLÓGICA | G89: NO | H89: GRUPO DE ATENCIÓN AL CIUDADANO | I89: 43938 | L89: =IFERROR(WORKDAY(C89,R89,DiasNOLaborables),"") -> 43957 | M89: =+IF(C89="","",IF(I89="","",(IF(I89<=L89,"A TIEMPO","FUERA DE TIEMPO")))) -> A TIEMPO | N89: =IF(I89="","",NETWORKDAYS([4]Hoja1!C89+1,[4]Hoja1!P89,DiasNOLaborables)) -> 10 | R89: 20 | Z89: SIRH | AA89: SISTEMA DE INFORMACIÓN DEL RECURDO HÍDRICO | AE89: 44093
A90: 79 | B90: 20209050029172 | C90: 43924 | D90: MODULO CONTACTENOS | E90: SOLICITUD DE INFORMACIÓN Y DOCUMENTOS | F90: SOLICITUD DE INFORMACIÓN HIDROMETEOROLÓGICA | G90: NO | H90: GRUPO DE ATENCIÓN AL CIUDADANO | I90: 43938 | L90: =IFERROR(WORKDAY(C90,R90,DiasNOLaborables),"") -> 43957 | M90: =+IF(C90="","",IF(I90="","",(IF(I90<=L90,"A TIEMPO","FUERA DE TIEMPO")))) -> A TIEMPO | N90: =IF(I90="","",NETWORKDAYS([4]Hoja1!C90+1,[4]Hoja1!P90,DiasNOLaborables)) -> 10 | R90: 20 | Z90: SOLICITUD DE INFORMACIÓN HIDROMETEOROLÓGICA | AE90: 44094
A91: 80 | B91: 20209050029192 | C91: 43924 | D91: MODULO CONTACTENOS | E91: SOLICITUD DE INFORMACIÓN Y DOCUMENTOS | F91: SOLICITUD DE INFORMACIÓN HIDROMETEOROLÓGICA | G91: NO | H91: GRUPO DE ATENCIÓN AL CIUDADANO | I91: 43938 | L91: =IFERROR(WORKDAY(C91,R91,DiasNOLaborables),"") -> 43957 | M91: =+IF(C91="","",IF(I91="","",(IF(I91<=L91,"A TIEMPO","FUERA DE TIEMPO")))) -> A TIEMPO | N91: =IF(I91="","",NETWORKDAYS([4]Hoja1!C91+1,[4]Hoja1!P91,DiasNOLaborables)) -> 10 | R91: 20 | Z91: SUELOS Y TIERRAS | AE91: 44100
A92: 81 | B92: 20209050029202 | C92: 43924 | D92: MODULO CONTACTENOS | E92: SOLICITUD DE INFORMACIÓN Y DOCUMENTOS | F92: SOLICITUD DE INFORMACIÓN HIDROMETEOROLÓGICA | G92: NO | H92: GRUPO DE ATENCIÓN AL CIUDADANO | I92: 43938 | L92: =IFERROR(WORKDAY(C92,R92,DiasNOLaborables),"") -> 43957 | M92: =+IF(C92="","",IF(I92="","",(IF(I92<=L92,"A TIEMPO","FUERA DE TIEMPO")))) -> A TIEMPO | N92: =IF(I92="","",NETWORKDAYS([4]Hoja1!C92+1,[4]Hoja1!P92,DiasNOLaborables)) -> 10 | R92: 20 | Z92: VISITAS ACADÉMICAS | AE92: 44101
A93: 82 | B93: 20209050029182 | C93: 43924 | D93: MODULO CONTACTENOS | E93: SOLICITUD DE INFORMACIÓN Y DOCUMENTOS | F93: SOLICITUD DE INFORMACIÓN HIDROMETEOROLÓGICA | G93: NO | H93: GRUPO DE ATENCIÓN AL CIUDADANO | I93: 43938 | L93: =IFERROR(WORKDAY(C93,R93,DiasNOLaborables),"") -> 43957 | M93: =+IF(C93="","",IF(I93="","",(IF(I93<=L93,"A TIEMPO","FUERA DE TIEMPO")))) -> A TIEMPO | N93: =IF(I93="","",NETWORKDAYS([4]Hoja1!C93+1,[4]Hoja1!P93,DiasNOLaborables)) -> 10 | R93: 20 | Z93: WEB Y CORREO | AE93: 44107
A94: 83 | B94: 20209050029212 | C94: 43924 | D94: MODULO CONTACTENOS | E94: SOLICITUD DE INFORMACIÓN Y DOCUMENTOS | F94: SOLICITUD DE INFORMACIÓN HIDROMETEOROLÓGICA | G94: NO | H94: GRUPO DE ATENCIÓN AL CIUDADANO | I94: 43938 | L94: =IFERROR(WORKDAY(C94,R94,DiasNOLaborables),"") -> 43957 | M94: =+IF(C94="","",IF(I94="","",(IF(I94<=L94,"A TIEMPO","FUERA DE TIEMPO")))) -> A TIEMPO | N94: =IF(I94="","",NETWORKDAYS([4]Hoja1!C94+1,[4]Hoja1!P94,DiasNOLaborables)) -> 10 | R94: 20 | Z94: ZONIFICACIÓN HIDROGRÁFICA | AE94: 44108
A95: 84 | B95: 20209050029222 | C95: 43924 | D95: MODULO CONTACTENOS | E95: SOLICITUD DE INFORMACIÓN Y DOCUMENTOS | F95: SOLICITUD DE INFORMACIÓN HIDROMETEOROLÓGICA | G95: NO | H95: GRUPO DE ATENCIÓN AL CIUDADANO | I95: 43938 | L95: =IFERROR(WORKDAY(C95,R95,DiasNOLaborables),"") -> 43957 | M95: =+IF(C95="","",IF(I95="","",(IF(I95<=L95,"A TIEMPO","FUERA DE TIEMPO")))) -> A TIEMPO | N95: =IF(I95="","",NETWORKDAYS([4]Hoja1!C95+1,[4]Hoja1!P95,DiasNOLaborables)) -> 9 | R95: 20 | AE95: 44114
A96: 85 | B96: 20209050029232 | C96: 43924 | D96: MODULO CONTACTENOS | E96: SOLICITUD DE INFORMACIÓN Y DOCUMENTOS | F96: SOLICITUD DE INFORMACIÓN HIDROMETEOROLÓGICA | G96: NO | H96: GRUPO DE ATENCIÓN AL CIUDADANO | I96: 43938 | L96: =IFERROR(WORKDAY(C96,R96,DiasNOLaborables),"") -> 43957 | M96: =+IF(C96="","",IF(I96="","",(IF(I96<=L96,"A TIEMPO","FUERA DE TIEMPO")))) -> A TIEMPO | N96: =IF(I96="","",NETWORKDAYS([4]Hoja1!C96+1,[4]Hoja1!P96,DiasNOLaborables)) -> 9 | R96: 20 | Z96: MEDIO DE RECEPCIÓN | AE96: 44115
A97: 86 | B97: 20209050029252 | C97: 43924 | D97: MODULO CONTACTENOS | E97: SOLICITUD DE INFORMACIÓN Y DOCUMENTOS | F97: SOLICITUD DE INFORMACIÓN HIDROMETEOROLÓGICA | G97: NO | H97: GRUPO DE ATENCIÓN AL CIUDADANO | I97: 43938 | L97: =IFERROR(WORKDAY(C97,R97,DiasNOLaborables),"") -> 43957 | M97: =+IF(C97="","",IF(I97="","",(IF(I97<=L97,"A TIEMPO","FUERA DE TIEMPO")))) -> A TIEMPO | N97: =IF(I97="","",NETWORKDAYS([4]Hoja1!C97+1,[4]Hoja1!P97,DiasNOLaborables)) -> 9 | R97: 20 | Z97: ATENCIÓN PRESENCIAL | AE97: 44116
A98: 87 | B98: 20209050029332 | C98: 43924 | D98: MODULO CONTACTENOS | E98: SOLICITUD DE INFORMACIÓN Y DOCUMENTOS | F98: SOLICITUD DE INFORMACIÓN HIDROMETEOROLÓGICA | G98: NO | H98: GRUPO DE ATENCIÓN AL CIUDADANO | I98: 43938 | L98: =IFERROR(WORKDAY(C98,R98,DiasNOLaborables),"") -> 43957 | M98: =+IF(C98="","",IF(I98="","",(IF(I98<=L98,"A TIEMPO","FUERA DE TIEMPO")))) -> A TIEMPO | N98: =IF(I98="","",NETWORKDAYS([4]Hoja1!C98+1,[4]Hoja1!P98,DiasNOLaborables)) -> 9 | R98: 20 | Z98: ATENCIÓN TELEFÓNICA | AE98: 44121
A99: 88 | B99: 20209050029342 | C99: 43924 | D99: MODULO CONTACTENOS | E99: SOLICITUD DE INFORMACIÓN Y DOCUMENTOS | F99: SOLICITUD DE INFORMACIÓN HIDROMETEOROLÓGICA | G99: NO | H99: GRUPO DE ATENCIÓN AL CIUDADANO | I99: 43938 | L99: =IFERROR(WORKDAY(C99,R99,DiasNOLaborables),"") -> 43957 | M99: =+IF(C99="","",IF(I99="","",(IF(I99<=L99,"A TIEMPO","FUERA DE TIEMPO")))) -> A TIEMPO | N99: =IF(I99="","",NETWORKDAYS([4]Hoja1!C99+1,[4]Hoja1!P99,DiasNOLaborables)) -> 9 | R99: 20 | Z99: BUZÓN DE SUGERENCIAS | AE99: 44122
A100: 89 | B100: 20209050029392 | C100: 43924 | D100: MODULO CONTACTENOS | E100: SOLICITUD DE INFORMACIÓN Y DOCUMENTOS | F100: SOLICITUD DE INFORMACIÓN HIDROMETEOROLÓGICA | G100: NO | H100: GRUPO DE ATENCIÓN AL CIUDADANO | I100: 43939 | L100: =IFERROR(WORKDAY(C100,R100,DiasNOLaborables),"") -> 43957 | M100: =+IF(C100="","",IF(I100="","",(IF(I100<=L100,"A TIEMPO","FUERA DE TIEMPO")))) -> A TIEMPO | N100: =IF(I100="","",NETWORKDAYS([4]Hoja1!C100+1,[4]Hoja1!P100,DiasNOLaborables)) -> 9 | R100: 20 | Z100: CHAT | AE100: 44128
A101: 90 | B101: 20209050029402 | C101: 43924 | D101: MODULO CONTACTENOS | E101: SOLICITUD DE INFORMACIÓN Y DOCUMENTOS | F101: SOLICITUD DE INFORMACIÓN HIDROMETEOROLÓGICA | G101: NO | H101: GRUPO DE ATENCIÓN AL CIUDADANO | I101: 43939 | L101: =IFERROR(WORKDAY(C101,R101,DiasNOLaborables),"") -> 43957 | M101: =+IF(C101="","",IF(I101="","",(IF(I101<=L101,"A TIEMPO","FUERA DE TIEMPO")))) -> A TIEMPO | N101: =IF(I101="","",NETWORKDAYS([4]Hoja1!C101+1,[4]Hoja1!P101,DiasNOLaborables)) -> 9 | R101: =IFERROR(VLOOKUP(E101,$Z$50:$AA$63,2),"") -> 20 | Z101: CORREO CERTIFICADO | AE101: 44129
A102: 91 | B102: 20209050029412 | C102: 43924 | D102: MODULO CONTACTENOS | E102: SOLICITUD DE INFORMACIÓN Y DOCUMENTOS | F102: SOLICITUD DE INFORMACIÓN HIDROMETEOROLÓGICA | G102: NO | H102: GRUPO DE ATENCIÓN AL CIUDADANO | I102: 43939 | L102: =IFERROR(WORKDAY(C102,R102,DiasNOLaborables),"") -> 43957 | M102: =+IF(C102="","",IF(I102="","",(IF(I102<=L102,"A TIEMPO","FUERA DE TIEMPO")))) -> A TIEMPO | N102: =IF(I102="","",NETWORKDAYS([4]Hoja1!C102+1,[4]Hoja1!P102,DiasNOLaborables)) -> 9 | R102: 20 | Z102: CORREO ELECTRÓNICO | AE102: 44135
A103: 92 | B103: 20209050029422 | C103: 43924 | D103: MODULO CONTACTENOS | E103: SOLICITUD DE INFORMACIÓN Y DOCUMENTOS | F103: SOLICITUD DE INFORMACIÓN HIDROMETEOROLÓGICA | G103: NO | H103: GRUPO DE ATENCIÓN AL CIUDADANO | I103: 43939 | L103: =IFERROR(WORKDAY(C103,R103,DiasNOLaborables),"") -> 43957 | M103: =+IF(C103="","",IF(I103="","",(IF(I103<=L103,"A TIEMPO","FUERA DE TIEMPO")))) -> A TIEMPO | N103: =IF(I103="","",NETWORKDAYS([4]Hoja1!C103+1,[4]Hoja1!P103,DiasNOLaborables)) -> 9 | R103: 20 | Z103: FAX | AE103: 44136
A104: 93 | B104: 20209050029432 | C104: 43925 | D104: MODULO CONTACTENOS | E104: SOLICITUD DE INFORMACIÓN Y DOCUMENTOS | F104: SOLICITUD DE INFORMACIÓN HIDROMETEOROLÓGICA | G104: NO | H104: GRUPO DE ATENCIÓN AL CIUDADANO | I104: 43939 | L104: =IFERROR(WORKDAY(C104,R104,DiasNOLaborables),"") -> 43957 | M104: =+IF(C104="","",IF(I104="","",(IF(I104<=L104,"A TIEMPO","FUERA DE TIEMPO")))) -> A TIEMPO | N104: =IF(I104="","",NETWORKDAYS([4]Hoja1!C104+1,[4]Hoja1!P104,DiasNOLaborables)) -> 9 | R104: 20 | Z104: INTERNO | AE104: 44142
A105: 94 | B105: 20209050029452 | C105: 43925 | D105: MODULO CONTACTENOS | E105: SOLICITUD DE INFORMACIÓN Y DOCUMENTOS | F105: SOLICITUD DE INFORMACIÓN HIDROMETEOROLÓGICA | G105: NO | H105: GRUPO DE ATENCIÓN AL CIUDADANO | I105: 43939 | L105: =IFERROR(WORKDAY(C105,R105,DiasNOLaborables),"") -> 43957 | M105: =+IF(C105="","",IF(I105="","",(IF(I105<=L105,"A TIEMPO","FUERA DE TIEMPO")))) -> A TIEMPO | N105: =IF(I105="","",NETWORKDAYS([4]Hoja1!C105+1,[4]Hoja1!P105,DiasNOLaborables)) -> 9 | O105: =IF(NETWORKDAYS(L105+1,I105,DiasNOLaborables)<=0,"",NETWORKDAYS(L105+1,I105,DiasNOLaborables)) ->  | R105: 20 | Z105: MODULO CONTACTENOS | AE105: 44143
A106: 95 | B106: 20200404112514 | C106: 43925 | D106: WEB (MÓDULO DE SOLICITUD DE INFORMACIÓN HIDROMETEOROLÓGICA) | E106: SOLICITUD DE INFORMACIÓN Y DOCUMENTOS | F106: SOLICITUD DE INFORMACIÓN HIDROMETEOROLÓGICA | G106: NO | H106: GRUPO DE ATENCIÓN AL CIUDADANO | I106: 43939 | L106: =IFERROR(WORKDAY(C106,R106,DiasNOLaborables),"") -> 43957 | M106: =+IF(C106="","",IF(I106="","",(IF(I106<=L106,"A TIEMPO","FUERA DE TIEMPO")))) -> A TIEMPO | N106: =IF(I106="","",NETWORKDAYS([4]Hoja1!C106+1,[4]Hoja1!P106,DiasNOLaborables)) -> 9 | R106: 20 | Z106: WEB (MÓDULO DE SOLICITUD DE INFORMACIÓN HIDROMETEOROLÓGICA) | AE106: 44149
A107: 96 | B107: 20200404234622 | C107: 43925 | D107: WEB (MÓDULO DE SOLICITUD DE INFORMACIÓN HIDROMETEOROLÓGICA) | E107: SOLICITUD DE INFORMACIÓN Y DOCUMENTOS | F107: SOLICITUD DE INFORMACIÓN HIDROMETEOROLÓGICA | G107: NO | H107: GRUPO DE ATENCIÓN AL CIUDADANO | I107: 43941 | L107: =IFERROR(WORKDAY(C107,R107,DiasNOLaborables),"") -> 43957 | M107: =+IF(C107="","",IF(I107="","",(IF(I107<=L107,"A TIEMPO","FUERA DE TIEMPO")))) -> A TIEMPO | N107: =IF(I107="","",NETWORKDAYS([4]Hoja1!C107+1,[4]Hoja1!P107,DiasNOLaborables)) -> 8 | R107: 20 | AE107: 44150
A108: 97 | B108: 20200404233842 | C108: 43925 | D108: WEB (MÓDULO DE SOLICITUD DE INFORMACIÓN HIDROMETEOROLÓGICA) | E108: SOLICITUD DE INFORMACIÓN Y DOCUMENTOS | F108: SOLICITUD DE INFORMACIÓN HIDROMETEOROLÓGICA | G108: NO | H108: GRUPO DE ATENCIÓN AL CIUDADANO | I108: 43941 | L108: =IFERROR(WORKDAY(C108,R108,DiasNOLaborables),"") -> 43957 | M108: =+IF(C108="","",IF(I108="","",(IF(I108<=L108,"A TIEMPO","FUERA DE TIEMPO")))) -> A TIEMPO | N108: =IF(I108="","",NETWORKDAYS([4]Hoja1!C108+1,[4]Hoja1!P108,DiasNOLaborables)) -> 6 | R108: 20 | Z108: ¿REQUERIMIENTO FUE ESCALADO? | AE108: 44156
A109: 98 | B109: 20200404233231 | C109: 43925 | D109: WEB (MÓDULO DE SOLICITUD DE INFORMACIÓN HIDROMETEOROLÓGICA) | E109: SOLICITUD DE INFORMACIÓN Y DOCUMENTOS | F109: SOLICITUD DE INFORMACIÓN HIDROMETEOROLÓGICA | G109: NO | H109: GRUPO DE ATENCIÓN AL CIUDADANO | I109: 43941 | L109: =IFERROR(WORKDAY(C109,R109,DiasNOLaborables),"") -> 43957 | M109: =+IF(C109="","",IF(I109="","",(IF(I109<=L109,"A TIEMPO","FUERA DE TIEMPO")))) -> A TIEMPO | N109: =IF(I109="","",NETWORKDAYS([4]Hoja1!C109+1,[4]Hoja1!P109,DiasNOLaborables)) -> 6 | R109: 20 | Z109: SI | AE109: 44157
A110: 99 | B110: 20200404232932 | C110: 43925 | D110: WEB (MÓDULO DE SOLICITUD DE INFORMACIÓN HIDROMETEOROLÓGICA) | E110: SOLICITUD DE INFORMACIÓN Y DOCUMENTOS | F110: SOLICITUD DE INFORMACIÓN HIDROMETEOROLÓGICA | G110: NO | H110: GRUPO DE ATENCIÓN AL CIUDADANO | I110: 43941 | L110: =IFERROR(WORKDAY(C110,R110,DiasNOLaborables),"") -> 43957 | M110: =+IF(C110="","",IF(I110="","",(IF(I110<=L110,"A TIEMPO","FUERA DE TIEMPO")))) -> A TIEMPO | N110: =IF(I110="","",NETWORKDAYS([4]Hoja1!C110+1,[4]Hoja1!P110,DiasNOLaborables)) -> 9 | R110: 20 | Z110: NO | AE110: 44163
A111: 100 | B111: 20200404232447 | C111: 43925 | D111: WEB (MÓDULO DE SOLICITUD DE INFORMACIÓN HIDROMETEOROLÓGICA) | E111: SOLICITUD DE INFORMACIÓN Y DOCUMENTOS | F111: SOLICITUD DE INFORMACIÓN HIDROMETEOROLÓGICA | G111: NO | H111: GRUPO DE ATENCIÓN AL CIUDADANO | I111: 43941 | L111: =IFERROR(WORKDAY(C111,R111,DiasNOLaborables),"") -> 43957 | M111: =+IF(C111="","",IF(I111="","",(IF(I111<=L111,"A TIEMPO","FUERA DE TIEMPO")))) -> A TIEMPO | N111: =IF(I111="","",NETWORKDAYS([4]Hoja1!C111+1,[4]Hoja1!P111,DiasNOLaborables)) -> 9 | R111: 20 | AE111: 44164
A112: 101 | B112: 20200404231344 | C112: 43925 | D112: WEB (MÓDULO DE SOLICITUD DE INFORMACIÓN HIDROMETEOROLÓGICA) | E112: SOLICITUD DE INFORMACIÓN Y DOCUMENTOS | F112: SOLICITUD DE INFORMACIÓN HIDROMETEOROLÓGICA | G112: NO | H112: GRUPO DE ATENCIÓN AL CIUDADANO | I112: 43941 | L112: =IFERROR(WORKDAY(C112,R112,DiasNOLaborables),"") -> 43957 | M112: =+IF(C112="","",IF(I112="","",(IF(I112<=L112,"A TIEMPO","FUERA DE TIEMPO")))) -> A TIEMPO | N112: =IF(I112="","",NETWORKDAYS([4]Hoja1!C112+1,[4]Hoja1!P112,DiasNOLaborables)) -> 9 | R112: 20 | Z112: CANAL POR EL CUAL FUE RESUELTO EL REQUERIMIENTO | AE112: 44170
A113: 102 | B113: 20200404230104 | C113: 43925 | D113: WEB (MÓDULO DE SOLICITUD DE INFORMACIÓN HIDROMETEOROLÓGICA) | E113: SOLICITUD DE INFORMACIÓN Y DOCUMENTOS | F113: SOLICITUD DE INFORMACIÓN HIDROMETEOROLÓGICA | G113: NO | H113: GRUPO DE ATENCIÓN AL CIUDADANO | I113: 43941 | L113: =IFERROR(WORKDAY(C113,R113,DiasNOLaborables),"") -> 43957 | M113: =+IF(C113="","",IF(I113="","",(IF(I113<=L113,"A TIEMPO","FUERA DE TIEMPO")))) -> A TIEMPO | N113: =IF(I113="","",NETWORKDAYS([4]Hoja1!C113+1,[4]Hoja1!P113,DiasNOLaborables)) -> 9 | R113: 20 | Z113: CORREO ELECTRÓNICO | AE113: 44171
A114: 103 | B114: 20200404225330 | C114: 43925 | D114: WEB (MÓDULO DE SOLICITUD DE INFORMACIÓN HIDROMETEOROLÓGICA) | E114: SOLICITUD DE INFORMACIÓN Y DOCUMENTOS | F114: SOLICITUD DE INFORMACIÓN HIDROMETEOROLÓGICA | G114: NO | H114: GRUPO DE ATENCIÓN AL CIUDADANO | I114: 43941 | L114: =IFERROR(WORKDAY(C114,R114,DiasNOLaborables),"") -> 43957 | M114: =+IF(C114="","",IF(I114="","",(IF(I114<=L114,"A TIEMPO","FUERA DE TIEMPO")))) -> A TIEMPO | N114: =IF(I114="","",NETWORKDAYS([4]Hoja1!C114+1,[4]Hoja1!P114,DiasNOLaborables)) -> 9 | R114: 20 | Z114: CORREO CERTIFICADO | AE114: 44173
A115: 104 | B115: 20200404224725 | C115: 43925 | D115: WEB (MÓDULO DE SOLICITUD DE INFORMACIÓN HIDROMETEOROLÓGICA) | E115: SOLICITUD DE INFORMACIÓN Y DOCUMENTOS | F115: SOLICITUD DE INFORMACIÓN HIDROMETEOROLÓGICA | G115: NO | H115: GRUPO DE ATENCIÓN AL CIUDADANO | I115: 43941 | L115: =IFERROR(WORKDAY(C115,R115,DiasNOLaborables),"") -> 43957 | M115: =+IF(C115="","",IF(I115="","",(IF(I115<=L115,"A TIEMPO","FUERA DE TIEMPO")))) -> A TIEMPO | N115: =IF(I115="","",NETWORKDAYS([4]Hoja1!C115+1,[4]Hoja1!P115,DiasNOLaborables)) -> 9 | R115: 20 | AE115: 44177
A116: 105 | B116: 20200404223735 | C116: 43925 | D116: WEB (MÓDULO DE SOLICITUD DE INFORMACIÓN HIDROMETEOROLÓGICA) | E116: SOLICITUD DE INFORMACIÓN Y DOCUMENTOS | F116: SOLICITUD DE INFORMACIÓN HIDROMETEOROLÓGICA | G116: NO | H116: GRUPO DE ATENCIÓN AL CIUDADANO | I116: 43941 | L116: =IFERROR(WORKDAY(C116,R116,DiasNOLaborables),"") -> 43957 | M116: =+IF(C116="","",IF(I116="","",(IF(I116<=L116,"A TIEMPO","FUERA DE TIEMPO")))) -> A TIEMPO | N116: =IF(I116="","",NETWORKDAYS([4]Hoja1!C116+1,[4]Hoja1!P116,DiasNOLaborables)) -> 8 | R116: 20 | AE116: 44178
A117: 106 | B117: 20200404223220 | C117: 43925 | D117: WEB (MÓDULO DE SOLICITUD DE INFORMACIÓN HIDROMETEOROLÓGICA) | E117: SOLICITUD DE INFORMACIÓN Y DOCUMENTOS | F117: SOLICITUD DE INFORMACIÓN HIDROMETEOROLÓGICA | G117: NO | H117: GRUPO DE ATENCIÓN AL CIUDADANO | I117: 43941 | L117: =IFERROR(WORKDAY(C117,R117,DiasNOLaborables),"") -> 43957 | M117: =+IF(C117="","",IF(I117="","",(IF(I117<=L117,"A TIEMPO","FUERA DE TIEMPO")))) -> A TIEMPO | N117: =IF(I117="","",NETWORKDAYS([4]Hoja1!C117+1,[4]Hoja1!P117,DiasNOLaborables)) -> 8 | R117: 20 | AE117: 44184
A118: 107 | B118: 20200404222416 | C118: 43925 | D118: WEB (MÓDULO DE SOLICITUD DE INFORMACIÓN HIDROMETEOROLÓGICA) | E118: SOLICITUD DE INFORMACIÓN Y DOCUMENTOS | F118: SOLICITUD DE INFORMACIÓN HIDROMETEOROLÓGICA | G118: NO | H118: GRUPO DE ATENCIÓN AL CIUDADANO | I118: 43941 | L118: =IFERROR(WORKDAY(C118,R118,DiasNOLaborables),"") -> 43957 | M118: =+IF(C118="","",IF(I118="","",(IF(I118<=L118,"A TIEMPO","FUERA DE TIEMPO")))) -> A TIEMPO | N118: =IF(I118="","",NETWORKDAYS([4]Hoja1!C118+1,[4]Hoja1!P118,DiasNOLaborables)) -> 8 | R118: 20 | AE118: 44185
A119: 108 | B119: 20200404215205 | C119: 43925 | D119: WEB (MÓDULO DE SOLICITUD DE INFORMACIÓN HIDROMETEOROLÓGICA) | E119: SOLICITUD DE INFORMACIÓN Y DOCUMENTOS | F119: SOLICITUD DE INFORMACIÓN HIDROMETEOROLÓGICA | G119: NO | H119: GRUPO DE ATENCIÓN AL CIUDADANO | I119: 43941 | L119: =IFERROR(WORKDAY(C119,R119,DiasNOLaborables),"") -> 43957 | M119: =+IF(C119="","",IF(I119="","",(IF(I119<=L119,"A TIEMPO","FUERA DE TIEMPO")))) -> A TIEMPO | N119: =IF(I119="","",NETWORKDAYS([4]Hoja1!C119+1,[4]Hoja1!P119,DiasNOLaborables)) -> 8 | R119: 20 | AE119: 44190
A120: 109 | B120: 20209050029692 | C120: 43927 | D120: MODULO CONTACTENOS | E120: SOLICITUD DE INFORMACIÓN Y DOCUMENTOS | F120: SOLICITUD DE INFORMACIÓN HIDROMETEOROLÓGICA | G120: NO | H120: GRUPO DE ATENCIÓN AL CIUDADANO | I120: 43941 | L120: =IFERROR(WORKDAY(C120,R120,DiasNOLaborables),"") -> 43958 | M120: =+IF(C120="","",IF(I120="","",(IF(I120<=L120,"A TIEMPO","FUERA DE TIEMPO")))) -> A TIEMPO | N120: =IF(I120="","",NETWORKDAYS([4]Hoja1!C120+1,[4]Hoja1!P120,DiasNOLaborables)) -> 10 | R120: 20 | AE120: 44191
A121: 110 | B121: 20209050029702 | C121: 43927 | D121: MODULO CONTACTENOS | E121: SOLICITUD DE INFORMACIÓN Y DOCUMENTOS | F121: SOLICITUD DE INFORMACIÓN HIDROMETEOROLÓGICA | G121: NO | H121: GRUPO DE ATENCIÓN AL CIUDADANO | I121: 43941 | L121: =IFERROR(WORKDAY(C121,R121,DiasNOLaborables),"") -> 43958 | M121: =+IF(C121="","",IF(I121="","",(IF(I121<=L121,"A TIEMPO","FUERA DE TIEMPO")))) -> A TIEMPO | N121: =IF(I121="","",NETWORKDAYS([4]Hoja1!C121+1,[4]Hoja1!P121,DiasNOLaborables)) -> 10 | R121: 20 | AE121: 44192
A122: 111 | B122: 20209050029712 | C122: 43927 | D122: MODULO CONTACTENOS | E122: SOLICITUD DE INFORMACIÓN Y DOCUMENTOS | F122: SOLICITUD DE INFORMACIÓN HIDROMETEOROLÓGICA | G122: NO | H122: GRUPO DE ATENCIÓN AL CIUDADANO | I122: 43941 | L122: =IFERROR(WORKDAY(C122,R122,DiasNOLaborables),"") -> 43958 | M122: =+IF(C122="","",IF(I122="","",(IF(I122<=L122,"A TIEMPO","FUERA DE TIEMPO")))) -> A TIEMPO | N122: =IF(I122="","",NETWORKDAYS([4]Hoja1!C122+1,[4]Hoja1!P122,DiasNOLaborables)) -> 10 | R122: 20
A123: 112 | B123: 20209050029722 | C123: 43927 | D123: MODULO CONTACTENOS | E123: SOLICITUD DE INFORMACIÓN Y DOCUMENTOS | F123: SOLICITUD DE INFORMACIÓN HIDROMETEOROLÓGICA | G123: NO | H123: GRUPO DE ATENCIÓN AL CIUDADANO | I123: 43941 | L123: =IFERROR(WORKDAY(C123,R123,DiasNOLaborables),"") -> 43958 | M123: =+IF(C123="","",IF(I123="","",(IF(I123<=L123,"A TIEMPO","FUERA DE TIEMPO")))) -> A TIEMPO | N123: =IF(I123="","",NETWORKDAYS([4]Hoja1!C123+1,[4]Hoja1!P123,DiasNOLaborables)) -> 10 | R123: 20
A124: 113 | B124: 20209050029732 | C124: 43927 | D124: MODULO CONTACTENOS | E124: SOLICITUD DE INFORMACIÓN Y DOCUMENTOS | F124: SOLICITUD DE INFORMACIÓN HIDROMETEOROLÓGICA | G124: NO | H124: GRUPO DE ATENCIÓN AL CIUDADANO | I124: 43941 | L124: =IFERROR(WORKDAY(C124,R124,DiasNOLaborables),"") -> 43958 | M124: =+IF(C124="","",IF(I124="","",(IF(I124<=L124,"A TIEMPO","FUERA DE TIEMPO")))) -> A TIEMPO | N124: =IF(I124="","",NETWORKDAYS([4]Hoja1!C124+1,[4]Hoja1!P124,DiasNOLaborables)) -> 9 | R124: 20
A125: 114 | B125: 20209050029762 | C125: 43927 | D125: MODULO CONTACTENOS | E125: SOLICITUD DE INFORMACIÓN Y DOCUMENTOS | F125: SOLICITUD DE INFORMACIÓN HIDROMETEOROLÓGICA | G125: NO | H125: GRUPO DE ATENCIÓN AL CIUDADANO | I125: 43941 | L125: =IFERROR(WORKDAY(C125,R125,DiasNOLaborables),"") -> 43958 | M125: =+IF(C125="","",IF(I125="","",(IF(I125<=L125,"A TIEMPO","FUERA DE TIEMPO")))) -> A TIEMPO | N125: =IF(I125="","",NETWORKDAYS([4]Hoja1!C125+1,[4]Hoja1!P125,DiasNOLaborables)) -> 8 | R125: 20
A126: 115 | B126: 20209050030092 | C126: 43928 | D126: MODULO CONTACTENOS | E126: SOLICITUD DE INFORMACIÓN Y DOCUMENTOS | F126: SOLICITUD DE INFORMACIÓN HIDROMETEOROLÓGICA | G126: NO | H126: GRUPO DE ATENCIÓN AL CIUDADANO | I126: 43941 | L126: =IFERROR(WORKDAY(C126,R126,DiasNOLaborables),"") -> 43959 | M126: =+IF(C126="","",IF(I126="","",(IF(I126<=L126,"A TIEMPO","FUERA DE TIEMPO")))) -> A TIEMPO | N126: =IF(I126="","",NETWORKDAYS([4]Hoja1!C126+1,[4]Hoja1!P126,DiasNOLaborables)) -> 8 | R126: 20
A127: 116 | B127: 20209050030102 | C127: 43928 | D127: MODULO CONTACTENOS | E127: SOLICITUD DE INFORMACIÓN Y DOCUMENTOS | F127: SOLICITUD DE INFORMACIÓN HIDROMETEOROLÓGICA | G127: NO | H127: GRUPO DE ATENCIÓN AL CIUDADANO | I127: 43941 | L127: =IFERROR(WORKDAY(C127,R127,DiasNOLaborables),"") -> 43959 | M127: =+IF(C127="","",IF(I127="","",(IF(I127<=L127,"A TIEMPO","FUERA DE TIEMPO")))) -> A TIEMPO | N127: =IF(I127="","",NETWORKDAYS([4]Hoja1!C127+1,[4]Hoja1!P127,DiasNOLaborables)) -> 8 | R127: 20
A128: 117 | B128: 20209050030112 | C128: 43928 | D128: MODULO CONTACTENOS | E128: SOLICITUD DE INFORMACIÓN Y DOCUMENTOS | F128: SOLICITUD DE INFORMACIÓN HIDROMETEOROLÓGICA | G128: NO | H128: GRUPO DE ATENCIÓN AL CIUDADANO | I128: 43942 | L128: =IFERROR(WORKDAY(C128,R128,DiasNOLaborables),"") -> 43959 | M128: =+IF(C128="","",IF(I128="","",(IF(I128<=L128,"A TIEMPO","FUERA DE TIEMPO")))) -> A TIEMPO | N128: =IF(I128="","",NETWORKDAYS([4]Hoja1!C128+1,[4]Hoja1!P128,DiasNOLaborables)) -> 8 | R128: 20
A129: 118 | B129: 20209050030122 | C129: 43928 | D129: MODULO CONTACTENOS | E129: SOLICITUD DE INFORMACIÓN Y DOCUMENTOS | F129: SOLICITUD DE INFORMACIÓN HIDROMETEOROLÓGICA | G129: NO | H129: GRUPO DE ATENCIÓN AL CIUDADANO | I129: 43942 | L129: =IFERROR(WORKDAY(C129,R129,DiasNOLaborables),"") -> 43959 | M129: =+IF(C129="","",IF(I129="","",(IF(I129<=L129,"A TIEMPO","FUERA DE TIEMPO")))) -> A TIEMPO | N129: =IF(I129="","",NETWORKDAYS([4]Hoja1!C129+1,[4]Hoja1!P129,DiasNOLaborables)) -> 8 | R129: 20
A130: 119 | B130: 20209050030132 | C130: 43928 | D130: MODULO CONTACTENOS | E130: SOLICITUD DE INFORMACIÓN Y DOCUMENTOS | F130: SOLICITUD DE INFORMACIÓN HIDROMETEOROLÓGICA | G130: NO | H130: GRUPO DE ATENCIÓN AL CIUDADANO | I130: 43942 | L130: =IFERROR(WORKDAY(C130,R130,DiasNOLaborables),"") -> 43959 | M130: =+IF(C130="","",IF(I130="","",(IF(I130<=L130,"A TIEMPO","FUERA DE TIEMPO")))) -> A TIEMPO | N130: =IF(I130="","",NETWORKDAYS([4]Hoja1!C130+1,[4]Hoja1!P130,DiasNOLaborables)) -> 5 | R130: 20
A131: 120 | B131: 20209050030412 | C131: 43929 | D131: MODULO CONTACTENOS | E131: SOLICITUD DE INFORMACIÓN Y DOCUMENTOS | F131: SOLICITUD DE INFORMACIÓN HIDROMETEOROLÓGICA | G131: NO | H131: GRUPO DE ATENCIÓN AL CIUDADANO | I131: 43942 | L131: =IFERROR(WORKDAY(C131,R131,DiasNOLaborables),"") -> 43962 | M131: =+IF(C131="","",IF(I131="","",(IF(I131<=L131,"A TIEMPO","FUERA DE TIEMPO")))) -> A TIEMPO | N131: =IF(I131="","",NETWORKDAYS([4]Hoja1!C131+1,[4]Hoja1!P131,DiasNOLaborables)) -> 9 | R131: 20
A132: 121 | B132: 20209050030452 | C132: 43929 | D132: MODULO CONTACTENOS | E132: SOLICITUD DE INFORMACIÓN Y DOCUMENTOS | F132: SOLICITUD DE INFORMACIÓN HIDROMETEOROLÓGICA | G132: NO | H132: GRUPO DE ATENCIÓN AL CIUDADANO | I132: 43942 | L132: =IFERROR(WORKDAY(C132,R132,DiasNOLaborables),"") -> 43962 | M132: =+IF(C132="","",IF(I132="","",(IF(I132<=L132,"A TIEMPO","FUERA DE TIEMPO")))) -> A TIEMPO | N132: =IF(I132="","",NETWORKDAYS([4]Hoja1!C132+1,[4]Hoja1!P132,DiasNOLaborables)) -> 9 | R132: 20
A133: 122 | B133: 20209050030472 | C133: 43929 | D133: MODULO CONTACTENOS | E133: SOLICITUD DE INFORMACIÓN Y DOCUMENTOS | F133: SOLICITUD DE INFORMACIÓN HIDROMETEOROLÓGICA | G133: NO | H133: GRUPO DE ATENCIÓN AL CIUDADANO | I133: 43942 | L133: =IFERROR(WORKDAY(C133,R133,DiasNOLaborables),"") -> 43962 | M133: =+IF(C133="","",IF(I133="","",(IF(I133<=L133,"A TIEMPO","FUERA DE TIEMPO")))) -> A TIEMPO | N133: =IF(I133="","",NETWORKDAYS([4]Hoja1!C133+1,[4]Hoja1!P133,DiasNOLaborables)) -> 9 | R133: 20
A134: 123 | B134: 20209050030592 | C134: 43929 | D134: MODULO CONTACTENOS | E134: SOLICITUD DE INFORMACIÓN Y DOCUMENTOS | F134: SOLICITUD DE INFORMACIÓN HIDROMETEOROLÓGICA | G134: NO | H134: GRUPO DE ATENCIÓN AL CIUDADANO | I134: 43942 | L134: =IFERROR(WORKDAY(C134,R134,DiasNOLaborables),"") -> 43962 | M134: =+IF(C134="","",IF(I134="","",(IF(I134<=L134,"A TIEMPO","FUERA DE TIEMPO")))) -> A TIEMPO | N134: =IF(I134="","",NETWORKDAYS([4]Hoja1!C134+1,[4]Hoja1!P134,DiasNOLaborables)) -> 9 | R134: 20
A135: 124 | B135: 20209050030602 | C135: 43929 | D135: MODULO CONTACTENOS | E135: SOLICITUD DE INFORMACIÓN Y DOCUMENTOS | F135: SOLICITUD DE INFORMACIÓN HIDROMETEOROLÓGICA | G135: NO | H135: GRUPO DE ATENCIÓN AL CIUDADANO | I135: 43942 | L135: =IFERROR(WORKDAY(C135,R135,DiasNOLaborables),"") -> 43962 | M135: =+IF(C135="","",IF(I135="","",(IF(I135<=L135,"A TIEMPO","FUERA DE TIEMPO")))) -> A TIEMPO | N135: =IF(I135="","",NETWORKDAYS([4]Hoja1!C135+1,[4]Hoja1!P135,DiasNOLaborables)) -> 9 | R135: 20
A136: 125 | B136: 20209050030492 | C136: 43929 | D136: MODULO CONTACTENOS | E136: SOLICITUD DE INFORMACIÓN Y DOCUMENTOS | F136: SOLICITUD DE INFORMACIÓN HIDROMETEOROLÓGICA | G136: NO | H136: GRUPO DE ATENCIÓN AL CIUDADANO | I136: 43942 | L136: =IFERROR(WORKDAY(C136,R136,DiasNOLaborables),"") -> 43962 | M136: =+IF(C136="","",IF(I136="","",(IF(I136<=L136,"A TIEMPO","FUERA DE TIEMPO")))) -> A TIEMPO | N136: =IF(I136="","",NETWORKDAYS([4]Hoja1!C136+1,[4]Hoja1!P136,DiasNOLaborables)) -> 9 | R136: 20
A137: 126 | B137: 20209910033442 | C137: 43929 | D137: MODULO CONTACTENOS | E137: SOLICITUD DE INFORMACIÓN Y DOCUMENTOS | F137: SOLICITUD DE INFORMACIÓN HIDROMETEOROLÓGICA | G137: NO | H137: GRUPO DE ATENCIÓN AL CIUDADANO | I137: 43942 | L137: =IFERROR(WORKDAY(C137,R137,DiasNOLaborables),"") -> 43962 | M137: =+IF(C137="","",IF(I137="","",(IF(I137<=L137,"A TIEMPO","FUERA DE TIEMPO")))) -> A TIEMPO | N137: =IF(I137="","",NETWORKDAYS([4]Hoja1!C137+1,[4]Hoja1!P137,DiasNOLaborables)) -> 8 | R137: 20
A138: 127 | B138: 20209050030612 | C138: 43929 | D138: MODULO CONTACTENOS | E138: SOLICITUD DE INFORMACIÓN Y DOCUMENTOS | F138: SOLICITUD DE INFORMACIÓN HIDROMETEOROLÓGICA | G138: NO | H138: GRUPO DE ATENCIÓN AL CIUDADANO | I138: 43942 | L138: =IFERROR(WORKDAY(C138,R138,DiasNOLaborables),"") -> 43962 | M138: =+IF(C138="","",IF(I138="","",(IF(I138<=L138,"A TIEMPO","FUERA DE TIEMPO")))) -> A TIEMPO | N138: =IF(I138="","",NETWORKDAYS([4]Hoja1!C138+1,[4]Hoja1!P138,DiasNOLaborables)) -> 8 | R138: 20
A139: 128 | B139: 20209050032052 | C139: 43936 | D139: MODULO CONTACTENOS | E139: SOLICITUD DE INFORMACIÓN Y DOCUMENTOS | F139: SOLICITUD DE INFORMACIÓN HIDROMETEOROLÓGICA | G139: NO | H139: GRUPO DE ATENCIÓN AL CIUDADANO | I139: 43942 | L139: =IFERROR(WORKDAY(C139,R139,DiasNOLaborables),"") -> 43965 | M139: =+IF(C139="","",IF(I139="","",(IF(I139<=L139,"A TIEMPO","FUERA DE TIEMPO")))) -> A TIEMPO | N139: =IF(I139="","",NETWORKDAYS([4]Hoja1!C139+1,[4]Hoja1!P139,DiasNOLaborables)) -> 8 | R139: 20
A140: 129 | B140: 20209050030622 | C140: 43929 | D140: MODULO CONTACTENOS | E140: SOLICITUD DE INFORMACIÓN Y DOCUMENTOS | F140: SOLICITUD DE INFORMACIÓN HIDROMETEOROLÓGICA | G140: NO | H140: GRUPO DE ATENCIÓN AL CIUDADANO | I140: 43942 | L140: =IFERROR(WORKDAY(C140,R140,DiasNOLaborables),"") -> 43962 | M140: =+IF(C140="","",IF(I140="","",(IF(I140<=L140,"A TIEMPO","FUERA DE TIEMPO")))) -> A TIEMPO | N140: =IF(I140="","",NETWORKDAYS([4]Hoja1!C140+1,[4]Hoja1!P140,DiasNOLaborables)) -> 8 | R140: 20
A141: 130 | B141: 20209050030632 | C141: 43929 | D141: MODULO CONTACTENOS | E141: SOLICITUD DE INFORMACIÓN Y DOCUMENTOS | F141: SOLICITUD DE INFORMACIÓN HIDROMETEOROLÓGICA | G141: NO | H141: GRUPO DE ATENCIÓN AL CIUDADANO | I141: 43942 | L141: =IFERROR(WORKDAY(C141,R141,DiasNOLaborables),"") -> 43962 | M141: =+IF(C141="","",IF(I141="","",(IF(I141<=L141,"A TIEMPO","FUERA DE TIEMPO")))) -> A TIEMPO | N141: =IF(I141="","",NETWORKDAYS([4]Hoja1!C141+1,[4]Hoja1!P141,DiasNOLaborables)) -> 8 | R141: 20
A142: =IF(B141<>"",A141+1,"") -> 131 | B142: 20209050030642 | C142: 43929 | D142: MODULO CONTACTENOS | E142: SOLICITUD DE INFORMACIÓN Y DOCUMENTOS | F142: SOLICITUD DE INFORMACIÓN HIDROMETEOROLÓGICA | G142: NO | H142: GRUPO DE ATENCIÓN AL CIUDADANO | I142: 43942 | L142: =IFERROR(WORKDAY(C142,R142,DiasNOLaborables),"") -> 43962 | M142: =+IF(C142="","",IF(I142="","",(IF(I142<=L142,"A TIEMPO","FUERA DE TIEMPO")))) -> A TIEMPO | N142: =IF(I142="","",NETWORKDAYS([4]Hoja1!C142+1,[4]Hoja1!P142,DiasNOLaborables)) -> 9 | R142: 20
A143: 132 | B143: 20209050030652 | C143: 43929 | D143: MODULO CONTACTENOS | E143: SOLICITUD DE INFORMACIÓN Y DOCUMENTOS | F143: SOLICITUD DE INFORMACIÓN HIDROMETEOROLÓGICA | G143: NO | H143: GRUPO DE ATENCIÓN AL CIUDADANO | I143: 43942 | L143: =IFERROR(WORKDAY(C143,R143,DiasNOLaborables),"") -> 43962 | M143: =+IF(C143="","",IF(I143="","",(IF(I143<=L143,"A TIEMPO","FUERA DE TIEMPO")))) -> A TIEMPO | N143: =IF(I143="","",NETWORKDAYS([4]Hoja1!C143+1,[4]Hoja1!P143,DiasNOLaborables)) -> 9 | R143: 20
A144: 133 | B144: 20200408213210 | C144: 43929 | D144: WEB (MÓDULO DE SOLICITUD DE INFORMACIÓN HIDROMETEOROLÓGICA) | E144: SOLICITUD DE INFORMACIÓN Y DOCUMENTOS | F144: SOLICITUD DE INFORMACIÓN HIDROMETEOROLÓGICA | G144: NO | H144: GRUPO DE ATENCIÓN AL CIUDADANO | I144: 43943 | L144: =IFERROR(WORKDAY(C144,R144,DiasNOLaborables),"") -> 43962 | M144: =+IF(C144="","",IF(I144="","",(IF(I144<=L144,"A TIEMPO","FUERA DE TIEMPO")))) -> A TIEMPO | N144: =IF(I144="","",NETWORKDAYS([4]Hoja1!C144+1,[4]Hoja1!P144,DiasNOLaborables)) -> 9 | R144: 20
A145: 134 | B145: 20200408212657 | C145: 43929 | D145: WEB (MÓDULO DE SOLICITUD DE INFORMACIÓN HIDROMETEOROLÓGICA) | E145: SOLICITUD DE INFORMACIÓN Y DOCUMENTOS | F145: SOLICITUD DE INFORMACIÓN HIDROMETEOROLÓGICA | G145: NO | H145: GRUPO DE ATENCIÓN AL CIUDADANO | I145: 43943 | L145: =IFERROR(WORKDAY(C145,R145,DiasNOLaborables),"") -> 43962 | M145: =+IF(C145="","",IF(I145="","",(IF(I145<=L145,"A TIEMPO","FUERA DE TIEMPO")))) -> A TIEMPO | N145: =IF(I145="","",NETWORKDAYS([4]Hoja1!C145+1,[4]Hoja1!P145,DiasNOLaborables)) -> 9 | R145: 20
A146: 135 | B146: 20200408212154 | C146: 43929 | D146: WEB (MÓDULO DE SOLICITUD DE INFORMACIÓN HIDROMETEOROLÓGICA) | E146: SOLICITUD DE INFORMACIÓN Y DOCUMENTOS | F146: SOLICITUD DE INFORMACIÓN HIDROMETEOROLÓGICA | G146: NO | H146: GRUPO DE ATENCIÓN AL CIUDADANO | I146: 43943 | L146: =IFERROR(WORKDAY(C146,R146,DiasNOLaborables),"") -> 43962 | M146: =+IF(C146="","",IF(I146="","",(IF(I146<=L146,"A TIEMPO","FUERA DE TIEMPO")))) -> A TIEMPO | N146: =IF(I146="","",NETWORKDAYS([4]Hoja1!C146+1,[4]Hoja1!P146,DiasNOLaborables)) -> 9 | R146: 20
A147: 136 | B147: 20200408211245 | C147: 43929 | D147: WEB (MÓDULO DE SOLICITUD DE INFORMACIÓN HIDROMETEOROLÓGICA) | E147: SOLICITUD DE INFORMACIÓN Y DOCUMENTOS | F147: SOLICITUD DE INFORMACIÓN HIDROMETEOROLÓGICA | G147: NO | H147: GRUPO DE ATENCIÓN AL CIUDADANO | I147: 43943 | L147: =IFERROR(WORKDAY(C147,R147,DiasNOLaborables),"") -> 43962 | M147: =+IF(C147="","",IF(I147="","",(IF(I147<=L147,"A TIEMPO","FUERA DE TIEMPO")))) -> A TIEMPO | N147: =IF(I147="","",NETWORKDAYS([4]Hoja1!C147+1,[4]Hoja1!P147,DiasNOLaborables)) -> 9 | R147: 20
A148: 137 | B148: 20200408210611 | C148: 43929 | D148: WEB (MÓDULO DE SOLICITUD DE INFORMACIÓN HIDROMETEOROLÓGICA) | E148: SOLICITUD DE INFORMACIÓN Y DOCUMENTOS | F148: SOLICITUD DE INFORMACIÓN HIDROMETEOROLÓGICA | G148: NO | H148: GRUPO DE ATENCIÓN AL CIUDADANO | I148: 43943 | L148: =IFERROR(WORKDAY(C148,R148,DiasNOLaborables),"") -> 43962 | M148: =+IF(C148="","",IF(I148="","",(IF(I148<=L148,"A TIEMPO","FUERA DE TIEMPO")))) -> A TIEMPO | N148: =IF(I148="","",NETWORKDAYS([4]Hoja1!C148+1,[4]Hoja1!P148,DiasNOLaborables)) -> 9 | R148: 20
A149: 138 | B149: 20200408191716 | C149: 43929 | D149: WEB (MÓDULO DE SOLICITUD DE INFORMACIÓN HIDROMETEOROLÓGICA) | E149: SOLICITUD DE INFORMACIÓN Y DOCUMENTOS | F149: SOLICITUD DE INFORMACIÓN HIDROMETEOROLÓGICA | G149: NO | H149: GRUPO DE ATENCIÓN AL CIUDADANO | I149: 43943 | L149: =IFERROR(WORKDAY(C149,R149,DiasNOLaborables),"") -> 43962 | M149: =+IF(C149="","",IF(I149="","",(IF(I149<=L149,"A TIEMPO","FUERA DE TIEMPO")))) -> A TIEMPO | N149: =IF(I149="","",NETWORKDAYS([4]Hoja1!C149+1,[4]Hoja1!P149,DiasNOLaborables)) -> 9 | R149: 20
A150: 139 | B150: 20200408190026 | C150: 43929 | D150: WEB (MÓDULO DE SOLICITUD DE INFORMACIÓN HIDROMETEOROLÓGICA) | E150: SOLICITUD DE INFORMACIÓN Y DOCUMENTOS | F150: SOLICITUD DE INFORMACIÓN HIDROMETEOROLÓGICA | G150: NO | H150: GRUPO DE ATENCIÓN AL CIUDADANO | I150: 43943 | L150: =IFERROR(WORKDAY(C150,R150,DiasNOLaborables),"") -> 43962 | M150: =+IF(C150="","",IF(I150="","",(IF(I150<=L150,"A TIEMPO","FUERA DE TIEMPO")))) -> A TIEMPO | N150: =IF(I150="","",NETWORKDAYS([4]Hoja1!C150+1,[4]Hoja1!P150,DiasNOLaborables)) -> 9 | R150: 20
A151: 140 | B151: 20200408185515 | C151: 43929 | D151: WEB (MÓDULO DE SOLICITUD DE INFORMACIÓN HIDROMETEOROLÓGICA) | E151: SOLICITUD DE INFORMACIÓN Y DOCUMENTOS | F151: SOLICITUD DE INFORMACIÓN HIDROMETEOROLÓGICA | G151: NO | H151: GRUPO DE ATENCIÓN AL CIUDADANO | I151: 43943 | L151: =IFERROR(WORKDAY(C151,R151,DiasNOLaborables),"") -> 43962 | M151: =+IF(C151="","",IF(I151="","",(IF(I151<=L151,"A TIEMPO","FUERA DE TIEMPO")))) -> A TIEMPO | N151: =IF(I151="","",NETWORKDAYS([4]Hoja1!C151+1,[4]Hoja1!P151,DiasNOLaborables)) -> 9 | R151: 20
A152: 141 | B152: 20200408184929 | C152: 43929 | D152: WEB (MÓDULO DE SOLICITUD DE INFORMACIÓN HIDROMETEOROLÓGICA) | E152: SOLICITUD DE INFORMACIÓN Y DOCUMENTOS | F152: SOLICITUD DE INFORMACIÓN HIDROMETEOROLÓGICA | G152: NO | H152: GRUPO DE ATENCIÓN AL CIUDADANO | I152: 43943 | L152: =IFERROR(WORKDAY(C152,R152,DiasNOLaborables),"") -> 43962 | M152: =+IF(C152="","",IF(I152="","",(IF(I152<=L152,"A TIEMPO","FUERA DE TIEMPO")))) -> A TIEMPO | N152: =IF(I152="","",NETWORKDAYS([4]Hoja1!C152+1,[4]Hoja1!P152,DiasNOLaborables)) -> 9 | R152: 20
A153: 142 | B153: 20200408183849 | C153: 43929 | D153: WEB (MÓDULO DE SOLICITUD DE INFORMACIÓN HIDROMETEOROLÓGICA) | E153: SOLICITUD DE INFORMACIÓN Y DOCUMENTOS | F153: SOLICITUD DE INFORMACIÓN HIDROMETEOROLÓGICA | G153: NO | H153: GRUPO DE ATENCIÓN AL CIUDADANO | I153: 43943 | L153: =IFERROR(WORKDAY(C153,R153,DiasNOLaborables),"") -> 43962 | M153: =+IF(C153="","",IF(I153="","",(IF(I153<=L153,"A TIEMPO","FUERA DE TIEMPO")))) -> A TIEMPO | N153: =IF(I153="","",NETWORKDAYS([4]Hoja1!C153+1,[4]Hoja1!P153,DiasNOLaborables)) -> 8 | R153: 20
A154: 143 | B154: 20200408183205 | C154: 43929 | D154: WEB (MÓDULO DE SOLICITUD DE INFORMACIÓN HIDROMETEOROLÓGICA) | E154: SOLICITUD DE INFORMACIÓN Y DOCUMENTOS | F154: SOLICITUD DE INFORMACIÓN HIDROMETEOROLÓGICA | G154: NO | H154: GRUPO DE ATENCIÓN AL CIUDADANO | I154: 43943 | L154: =IFERROR(WORKDAY(C154,R154,DiasNOLaborables),"") -> 43962 | M154: =+IF(C154="","",IF(I154="","",(IF(I154<=L154,"A TIEMPO","FUERA DE TIEMPO")))) -> A TIEMPO | N154: =IF(I154="","",NETWORKDAYS([4]Hoja1!C154+1,[4]Hoja1!P154,DiasNOLaborables)) -> 8 | R154: 20
A155: 144 | B155: 20200408182555 | C155: 43929 | D155: WEB (MÓDULO DE SOLICITUD DE INFORMACIÓN HIDROMETEOROLÓGICA) | E155: SOLICITUD DE INFORMACIÓN Y DOCUMENTOS | F155: SOLICITUD DE INFORMACIÓN HIDROMETEOROLÓGICA | G155: NO | H155: GRUPO DE ATENCIÓN AL CIUDADANO | I155: 43943 | L155: =IFERROR(WORKDAY(C155,R155,DiasNOLaborables),"") -> 43962 | M155: =+IF(C155="","",IF(I155="","",(IF(I155<=L155,"A TIEMPO","FUERA DE TIEMPO")))) -> A TIEMPO | N155: =IF(I155="","",NETWORKDAYS([4]Hoja1!C155+1,[4]Hoja1!P155,DiasNOLaborables)) -> 9 | R155: 20
A156: 145 | B156: 20200408181756 | C156: 43929 | D156: WEB (MÓDULO DE SOLICITUD DE INFORMACIÓN HIDROMETEOROLÓGICA) | E156: SOLICITUD DE INFORMACIÓN Y DOCUMENTOS | F156: SOLICITUD DE INFORMACIÓN HIDROMETEOROLÓGICA | G156: NO | H156: GRUPO DE ATENCIÓN AL CIUDADANO | I156: 43943 | L156: =IFERROR(WORKDAY(C156,R156,DiasNOLaborables),"") -> 43962 | M156: =+IF(C156="","",IF(I156="","",(IF(I156<=L156,"A TIEMPO","FUERA DE TIEMPO")))) -> A TIEMPO | N156: =IF(I156="","",NETWORKDAYS([4]Hoja1!C156+1,[4]Hoja1!P156,DiasNOLaborables)) -> 9 | R156: 20
A157: 146 | B157: 20200408181210 | C157: 43929 | D157: WEB (MÓDULO DE SOLICITUD DE INFORMACIÓN HIDROMETEOROLÓGICA) | E157: SOLICITUD DE INFORMACIÓN Y DOCUMENTOS | F157: SOLICITUD DE INFORMACIÓN HIDROMETEOROLÓGICA | G157: NO | H157: GRUPO DE ATENCIÓN AL CIUDADANO | I157: 43943 | L157: =IFERROR(WORKDAY(C157,R157,DiasNOLaborables),"") -> 43962 | M157: =+IF(C157="","",IF(I157="","",(IF(I157<=L157,"A TIEMPO","FUERA DE TIEMPO")))) -> A TIEMPO | N157: =IF(I157="","",NETWORKDAYS([4]Hoja1!C157+1,[4]Hoja1!P157,DiasNOLaborables)) -> 9 | R157: 20
A158: 147 | B158: 20209050030672 | C158: 43931 | D158: MODULO CONTACTENOS | E158: SOLICITUD DE INFORMACIÓN Y DOCUMENTOS | F158: SOLICITUD DE INFORMACIÓN HIDROMETEOROLÓGICA | G158: NO | H158: GRUPO DE ATENCIÓN AL CIUDADANO | I158: 43943 | L158: =IFERROR(WORKDAY(C158,R158,DiasNOLaborables),"") -> 43962 | M158: =+IF(C158="","",IF(I158="","",(IF(I158<=L158,"A TIEMPO","FUERA DE TIEMPO")))) -> A TIEMPO | N158: =IF(I158="","",NETWORKDAYS([4]Hoja1!C158+1,[4]Hoja1!P158,DiasNOLaborables)) -> 9 | R158: 20
A159: 148 | B159: 20209050030682 | C159: 43931 | D159: MODULO CONTACTENOS | E159: SOLICITUD DE INFORMACIÓN Y DOCUMENTOS | F159: SOLICITUD DE INFORMACIÓN HIDROMETEOROLÓGICA | G159: NO | H159: GRUPO DE ATENCIÓN AL CIUDADANO | I159: 43943 | L159: =IFERROR(WORKDAY(C159,R159,DiasNOLaborables),"") -> 43962 | M159: =+IF(C159="","",IF(I159="","",(IF(I159<=L159,"A TIEMPO","FUERA DE TIEMPO")))) -> A TIEMPO | N159: =IF(I159="","",NETWORKDAYS([4]Hoja1!C159+1,[4]Hoja1!P159,DiasNOLaborables)) -> 9 | R159: 20
A160: 149 | B160: 20209050030702 | C160: 43931 | D160: MODULO CONTACTENOS | E160: SOLICITUD DE INFORMACIÓN Y DOCUMENTOS | F160: SOLICITUD DE INFORMACIÓN HIDROMETEOROLÓGICA | G160: NO | H160: GRUPO DE ATENCIÓN AL CIUDADANO | I160: 43943 | L160: =IFERROR(WORKDAY(C160,R160,DiasNOLaborables),"") -> 43962 | M160: =+IF(C160="","",IF(I160="","",(IF(I160<=L160,"A TIEMPO","FUERA DE TIEMPO")))) -> A TIEMPO | N160: =IF(I160="","",NETWORKDAYS([4]Hoja1!C160+1,[4]Hoja1!P160,DiasNOLaborables)) -> 8 | R160: 20
A161: 150 | B161: 20209050030712 | C161: 43932 | D161: MODULO CONTACTENOS | E161: SOLICITUD DE INFORMACIÓN Y DOCUMENTOS | F161: SOLICITUD DE INFORMACIÓN HIDROMETEOROLÓGICA | G161: NO | H161: GRUPO DE ATENCIÓN AL CIUDADANO | I161: 43943 | L161: =IFERROR(WORKDAY(C161,R161,DiasNOLaborables),"") -> 43962 | M161: =+IF(C161="","",IF(I161="","",(IF(I161<=L161,"A TIEMPO","FUERA DE TIEMPO")))) -> A TIEMPO | N161: =IF(I161="","",NETWORKDAYS([4]Hoja1!C161+1,[4]Hoja1!P161,DiasNOLaborables)) -> 2 | R161: 20
A162: 151 | B162: 20209050030722 | C162: 43932 | D162: MODULO CONTACTENOS | E162: SOLICITUD DE INFORMACIÓN Y DOCUMENTOS | F162: SOLICITUD DE INFORMACIÓN HIDROMETEOROLÓGICA | G162: NO | H162: GRUPO DE ATENCIÓN AL CIUDADANO | I162: 43943 | L162: =IFERROR(WORKDAY(C162,R162,DiasNOLaborables),"") -> 43962 | M162: =+IF(C162="","",IF(I162="","",(IF(I162<=L162,"A TIEMPO","FUERA DE TIEMPO")))) -> A TIEMPO | N162: =IF(I162="","",NETWORKDAYS([4]Hoja1!C162+1,[4]Hoja1!P162,DiasNOLaborables)) -> 2 | R162: 20
A163: 152 | B163: 20209050030732 | C163: 43932 | D163: MODULO CONTACTENOS | E163: SOLICITUD DE INFORMACIÓN Y DOCUMENTOS | F163: SOLICITUD DE INFORMACIÓN HIDROMETEOROLÓGICA | G163: NO | H163: GRUPO DE ATENCIÓN AL CIUDADANO | I163: 43943 | L163: =IFERROR(WORKDAY(C163,R163,DiasNOLaborables),"") -> 43962 | M163: =+IF(C163="","",IF(I163="","",(IF(I163<=L163,"A TIEMPO","FUERA DE TIEMPO")))) -> A TIEMPO | N163: =IF(I163="","",NETWORKDAYS([4]Hoja1!C163+1,[4]Hoja1!P163,DiasNOLaborables)) -> 2 | R163: 20
A164: 153 | B164: 20209050030752 | C164: 43932 | D164: MODULO CONTACTENOS | E164: SOLICITUD DE INFORMACIÓN Y DOCUMENTOS | F164: SOLICITUD DE INFORMACIÓN HIDROMETEOROLÓGICA | G164: NO | H164: GRUPO DE ATENCIÓN AL CIUDADANO | I164: 43943 | L164: =IFERROR(WORKDAY(C164,R164,DiasNOLaborables),"") -> 43962 | M164: =+IF(C164="","",IF(I164="","",(IF(I164<=L164,"A TIEMPO","FUERA DE TIEMPO")))) -> A TIEMPO | N164: =IF(I164="","",NETWORKDAYS([4]Hoja1!C164+1,[4]Hoja1!P164,DiasNOLaborables)) -> 2 | R164: 20
A165: 154 | B165: 20200411220025 | C165: 43932 | D165: WEB (MÓDULO DE SOLICITUD DE INFORMACIÓN HIDROMETEOROLÓGICA) | E165: SOLICITUD DE INFORMACIÓN Y DOCUMENTOS | F165: SOLICITUD DE INFORMACIÓN HIDROMETEOROLÓGICA | G165: NO | H165: GRUPO DE ATENCIÓN AL CIUDADANO | I165: 43943 | L165: =IFERROR(WORKDAY(C165,R165,DiasNOLaborables),"") -> 43962 | M165: =+IF(C165="","",IF(I165="","",(IF(I165<=L165,"A TIEMPO","FUERA DE TIEMPO")))) -> A TIEMPO | N165: =IF(I165="","",NETWORKDAYS([4]Hoja1!C165+1,[4]Hoja1!P165,DiasNOLaborables)) -> 2 | R165: =IFERROR(VLOOKUP(E165,$Z$50:$AA$63,2),"") -> 20
A166: 155 | B166: 20200411215641 | C166: 43932 | D166: WEB (MÓDULO DE SOLICITUD DE INFORMACIÓN HIDROMETEOROLÓGICA) | E166: SOLICITUD DE INFORMACIÓN Y DOCUMENTOS | F166: SOLICITUD DE INFORMACIÓN HIDROMETEOROLÓGICA | G166: NO | H166: GRUPO DE ATENCIÓN AL CIUDADANO | I166: 43943 | L166: =IFERROR(WORKDAY(C166,R166,DiasNOLaborables),"") -> 43962 | M166: =+IF(C166="","",IF(I166="","",(IF(I166<=L166,"A TIEMPO","FUERA DE TIEMPO")))) -> A TIEMPO | N166: =IF(I166="","",NETWORKDAYS([4]Hoja1!C166+1,[4]Hoja1!P166,DiasNOLaborables)) -> 2 | R166: 20
A167: 156 | B167: 20200411215329 | C167: 43932 | D167: WEB (MÓDULO DE SOLICITUD DE INFORMACIÓN HIDROMETEOROLÓGICA) | E167: SOLICITUD DE INFORMACIÓN Y DOCUMENTOS | F167: SOLICITUD DE INFORMACIÓN HIDROMETEOROLÓGICA | G167: NO | H167: GRUPO DE ATENCIÓN AL CIUDADANO | I167: 43943 | L167: =IFERROR(WORKDAY(C167,R167,DiasNOLaborables),"") -> 43962 | M167: =+IF(C167="","",IF(I167="","",(IF(I167<=L167,"A TIEMPO","FUERA DE TIEMPO")))) -> A TIEMPO | N167: =IF(I167="","",NETWORKDAYS([4]Hoja1!C167+1,[4]Hoja1!P167,DiasNOLaborables)) -> 2 | R167: 20
A168: 157 | B168: 20200411214932 | C168: 43932 | D168: WEB (MÓDULO DE SOLICITUD DE INFORMACIÓN HIDROMETEOROLÓGICA) | E168: SOLICITUD DE INFORMACIÓN Y DOCUMENTOS | F168: SOLICITUD DE INFORMACIÓN HIDROMETEOROLÓGICA | G168: NO | H168: GRUPO DE ATENCIÓN AL CIUDADANO | I168: 43943 | L168: =IFERROR(WORKDAY(C168,R168,DiasNOLaborables),"") -> 43962 | M168: =+IF(C168="","",IF(I168="","",(IF(I168<=L168,"A TIEMPO","FUERA DE TIEMPO")))) -> A TIEMPO | N168: =IF(I168="","",NETWORKDAYS([4]Hoja1!C168+1,[4]Hoja1!P168,DiasNOLaborables)) -> 7 | R168: 20
A169: 158 | B169: 20200411214610 | C169: 43932 | D169: WEB (MÓDULO DE SOLICITUD DE INFORMACIÓN HIDROMETEOROLÓGICA) | E169: SOLICITUD DE INFORMACIÓN Y DOCUMENTOS | F169: SOLICITUD DE INFORMACIÓN HIDROMETEOROLÓGICA | G169: NO | H169: GRUPO DE ATENCIÓN AL CIUDADANO | I169: 43943 | L169: =IFERROR(WORKDAY(C169,R169,DiasNOLaborables),"") -> 43962 | M169: =+IF(C169="","",IF(I169="","",(IF(I169<=L169,"A TIEMPO","FUERA DE TIEMPO")))) -> A TIEMPO | N169: =IF(I169="","",NETWORKDAYS([4]Hoja1!C169+1,[4]Hoja1!P169,DiasNOLaborables)) -> 7 | O169: =IF(NETWORKDAYS(L169+1,I169,DiasNOLaborables)<=0,"",NETWORKDAYS(L169+1,I169,DiasNOLaborables)) ->  | R169: 20
A170: 159 | B170: 20200411214229 | C170: 43932 | D170: WEB (MÓDULO DE SOLICITUD DE INFORMACIÓN HIDROMETEOROLÓGICA) | E170: SOLICITUD DE INFORMACIÓN Y DOCUMENTOS | F170: SOLICITUD DE INFORMACIÓN HIDROMETEOROLÓGICA | G170: NO | H170: GRUPO DE ATENCIÓN AL CIUDADANO | I170: 43943 | L170: =IFERROR(WORKDAY(C170,R170,DiasNOLaborables),"") -> 43962 | M170: =+IF(C170="","",IF(I170="","",(IF(I170<=L170,"A TIEMPO","FUERA DE TIEMPO")))) -> A TIEMPO | N170: =IF(I170="","",NETWORKDAYS([4]Hoja1!C170+1,[4]Hoja1!P170,DiasNOLaborables)) -> 7 | R170: 20
A171: 160 | B171: 20200411213506 | C171: 43932 | D171: WEB (MÓDULO DE SOLICITUD DE INFORMACIÓN HIDROMETEOROLÓGICA) | E171: SOLICITUD DE INFORMACIÓN Y DOCUMENTOS | F171: SOLICITUD DE INFORMACIÓN HIDROMETEOROLÓGICA | G171: NO | H171: GRUPO DE ATENCIÓN AL CIUDADANO | I171: 43943 | L171: =IFERROR(WORKDAY(C171,R171,DiasNOLaborables),"") -> 43962 | M171: =+IF(C171="","",IF(I171="","",(IF(I171<=L171,"A TIEMPO","FUERA DE TIEMPO")))) -> A TIEMPO | N171: =IF(I171="","",NETWORKDAYS([4]Hoja1!C171+1,[4]Hoja1!P171,DiasNOLaborables)) -> 7 | R171: 20
A172: 161 | B172: 20200411213118 | C172: 43932 | D172: WEB (MÓDULO DE SOLICITUD DE INFORMACIÓN HIDROMETEOROLÓGICA) | E172: SOLICITUD DE INFORMACIÓN Y DOCUMENTOS | F172: SOLICITUD DE INFORMACIÓN HIDROMETEOROLÓGICA | G172: NO | H172: GRUPO DE ATENCIÓN AL CIUDADANO | I172: 43943 | L172: =IFERROR(WORKDAY(C172,R172,DiasNOLaborables),"") -> 43962 | M172: =+IF(C172="","",IF(I172="","",(IF(I172<=L172,"A TIEMPO","FUERA DE TIEMPO")))) -> A TIEMPO | N172: =IF(I172="","",NETWORKDAYS([4]Hoja1!C172+1,[4]Hoja1!P172,DiasNOLaborables)) -> 7 | R172: 20
A173: 162 | B173: 20200411212544 | C173: 43932 | D173: WEB (MÓDULO DE SOLICITUD DE INFORMACIÓN HIDROMETEOROLÓGICA) | E173: SOLICITUD DE INFORMACIÓN Y DOCUMENTOS | F173: SOLICITUD DE INFORMACIÓN HIDROMETEOROLÓGICA | G173: NO | H173: GRUPO DE ATENCIÓN AL CIUDADANO | I173: 43943 | L173: =IFERROR(WORKDAY(C173,R173,DiasNOLaborables),"") -> 43962 | M173: =+IF(C173="","",IF(I173="","",(IF(I173<=L173,"A TIEMPO","FUERA DE TIEMPO")))) -> A TIEMPO | N173: =IF(I173="","",NETWORKDAYS([4]Hoja1!C173+1,[4]Hoja1!P173,DiasNOLaborables)) -> 7 | R173: 20
A174: 163 | B174: 20200411105350 | C174: 43932 | D174: WEB (MÓDULO DE SOLICITUD DE INFORMACIÓN HIDROMETEOROLÓGICA) | E174: SOLICITUD DE INFORMACIÓN Y DOCUMENTOS | F174: SOLICITUD DE INFORMACIÓN HIDROMETEOROLÓGICA | G174: NO | H174: GRUPO DE ATENCIÓN AL CIUDADANO | I174: 43943 | L174: =IFERROR(WORKDAY(C174,R174,DiasNOLaborables),"") -> 43962 | M174: =+IF(C174="","",IF(I174="","",(IF(I174<=L174,"A TIEMPO","FUERA DE TIEMPO")))) -> A TIEMPO | N174: =IF(I174="","",NETWORKDAYS([4]Hoja1!C174+1,[4]Hoja1!P174,DiasNOLaborables)) -> 7 | R174: 20
A175: 164 | B175: 20209050030912 | C175: 43934 | D175: MODULO CONTACTENOS | E175: SOLICITUD DE INFORMACIÓN Y DOCUMENTOS | F175: SOLICITUD DE INFORMACIÓN HIDROMETEOROLÓGICA | G175: NO | H175: GRUPO DE ATENCIÓN AL CIUDADANO | I175: 43944 | L175: =IFERROR(WORKDAY(C175,R175,DiasNOLaborables),"") -> 43963 | M175: =+IF(C175="","",IF(I175="","",(IF(I175<=L175,"A TIEMPO","FUERA DE TIEMPO")))) -> A TIEMPO | N175: =IF(I175="","",NETWORKDAYS([4]Hoja1!C175+1,[4]Hoja1!P175,DiasNOLaborables)) -> 7 | R175: 20
A176: 165 | B176: 20209050030922 | C176: 43934 | D176: MODULO CONTACTENOS | E176: SOLICITUD DE INFORMACIÓN Y DOCUMENTOS | F176: SOLICITUD DE INFORMACIÓN HIDROMETEOROLÓGICA | G176: NO | H176: GRUPO DE ATENCIÓN AL CIUDADANO | I176: 43944 | L176: =IFERROR(WORKDAY(C176,R176,DiasNOLaborables),"") -> 43963 | M176: =+IF(C176="","",IF(I176="","",(IF(I176<=L176,"A TIEMPO","FUERA DE TIEMPO")))) -> A TIEMPO | N176: =IF(I176="","",NETWORKDAYS([4]Hoja1!C176+1,[4]Hoja1!P176,DiasNOLaborables)) -> 7 | R176: 20
A177: 166 | B177: 20209050030942 | C177: 43934 | D177: MODULO CONTACTENOS | E177: SOLICITUD DE INFORMACIÓN Y DOCUMENTOS | F177: SOLICITUD DE INFORMACIÓN HIDROMETEOROLÓGICA | G177: NO | H177: GRUPO DE ATENCIÓN AL CIUDADANO | I177: 43944 | L177: =IFERROR(WORKDAY(C177,R177,DiasNOLaborables),"") -> 43963 | M177: =+IF(C177="","",IF(I177="","",(IF(I177<=L177,"A TIEMPO","FUERA DE TIEMPO")))) -> A TIEMPO | N177: =IF(I177="","",NETWORKDAYS([4]Hoja1!C177+1,[4]Hoja1!P177,DiasNOLaborables)) -> 7 | R177: 20
A178: =IF(B176<>"",A177+1,"") -> 167 | B178: 20209050030952 | C178: 43934 | D178: MODULO CONTACTENOS | E178: SOLICITUD DE INFORMACIÓN Y DOCUMENTOS | F178: SOLICITUD DE INFORMACIÓN HIDROMETEOROLÓGICA | G178: NO | H178: GRUPO DE ATENCIÓN AL CIUDADANO | I178: 43944 | L178: =IFERROR(WORKDAY(C178,R178,DiasNOLaborables),"") -> 43963 | M178: =+IF(C178="","",IF(I178="","",(IF(I178<=L178,"A TIEMPO","FUERA DE TIEMPO")))) -> A TIEMPO | N178: =IF(I178="","",NETWORKDAYS([4]Hoja1!C178+1,[4]Hoja1!P178,DiasNOLaborables)) -> 7 | R178: 20
A179: 168 | B179: 20209050031002 | C179: 43934 | D179: MODULO CONTACTENOS | E179: SOLICITUD DE INFORMACIÓN Y DOCUMENTOS | F179: SOLICITUD DE INFORMACIÓN HIDROMETEOROLÓGICA | G179: NO | H179: GRUPO DE ATENCIÓN AL CIUDADANO | I179: 43944 | L179: =IFERROR(WORKDAY(C179,R179,DiasNOLaborables),"") -> 43963 | M179: =+IF(C179="","",IF(I179="","",(IF(I179<=L179,"A TIEMPO","FUERA DE TIEMPO")))) -> A TIEMPO | N179: =IF(I179="","",NETWORKDAYS([4]Hoja1!C179+1,[4]Hoja1!P179,DiasNOLaborables)) -> 6 | R179: 20
A180: 169 | B180: 20209050031242 | C180: 43934 | D180: MODULO CONTACTENOS | E180: SOLICITUD DE INFORMACIÓN Y DOCUMENTOS | F180: SOLICITUD DE INFORMACIÓN HIDROMETEOROLÓGICA | G180: NO | H180: GRUPO DE ATENCIÓN AL CIUDADANO | I180: 43944 | L180: =IFERROR(WORKDAY(C180,R180,DiasNOLaborables),"") -> 43963 | M180: =+IF(C180="","",IF(I180="","",(IF(I180<=L180,"A TIEMPO","FUERA DE TIEMPO")))) -> A TIEMPO | N180: =IF(I180="","",NETWORKDAYS([4]Hoja1!C180+1,[4]Hoja1!P180,DiasNOLaborables)) -> 6 | R180: 20
A181: 170 | B181: 20209050031262 | C181: 43934 | D181: MODULO CONTACTENOS | E181: SOLICITUD DE INFORMACIÓN Y DOCUMENTOS | F181: SOLICITUD DE INFORMACIÓN HIDROMETEOROLÓGICA | G181: NO | H181: GRUPO DE ATENCIÓN AL CIUDADANO | I181: 43944 | L181: =IFERROR(WORKDAY(C181,R181,DiasNOLaborables),"") -> 43963 | M181: =+IF(C181="","",IF(I181="","",(IF(I181<=L181,"A TIEMPO","FUERA DE TIEMPO")))) -> A TIEMPO | N181: =IF(I181="","",NETWORKDAYS([4]Hoja1!C181+1,[4]Hoja1!P181,DiasNOLaborables)) -> 6 | R181: 20
A182: 171 | B182: 20209050031272 | C182: 43934 | D182: MODULO CONTACTENOS | E182: SOLICITUD DE INFORMACIÓN Y DOCUMENTOS | F182: SOLICITUD DE INFORMACIÓN HIDROMETEOROLÓGICA | G182: NO | H182: GRUPO DE ATENCIÓN AL CIUDADANO | I182: 43944 | L182: =IFERROR(WORKDAY(C182,R182,DiasNOLaborables),"") -> 43963 | M182: =+IF(C182="","",IF(I182="","",(IF(I182<=L182,"A TIEMPO","FUERA DE TIEMPO")))) -> A TIEMPO | N182: =IF(I182="","",NETWORKDAYS([4]Hoja1!C182+1,[4]Hoja1!P182,DiasNOLaborables)) -> 6 | R182: 20
A183: 172 | B183: 20209050031292 | C183: 43934 | D183: MODULO CONTACTENOS | E183: SOLICITUD DE INFORMACIÓN Y DOCUMENTOS | F183: SOLICITUD DE INFORMACIÓN HIDROMETEOROLÓGICA | G183: NO | H183: GRUPO DE ATENCIÓN AL CIUDADANO | I183: 43944 | L183: =IFERROR(WORKDAY(C183,R183,DiasNOLaborables),"") -> 43963 | M183: =+IF(C183="","",IF(I183="","",(IF(I183<=L183,"A TIEMPO","FUERA DE TIEMPO")))) -> A TIEMPO | N183: =IF(I183="","",NETWORKDAYS([4]Hoja1!C183+1,[4]Hoja1!P183,DiasNOLaborables)) -> 6 | R183: 20
A184: 173 | B184: 20209050031302 | C184: 43934 | D184: MODULO CONTACTENOS | E184: SOLICITUD DE INFORMACIÓN Y DOCUMENTOS | F184: SOLICITUD DE INFORMACIÓN HIDROMETEOROLÓGICA | G184: NO | H184: GRUPO DE ATENCIÓN AL CIUDADANO | I184: 43944 | L184: =IFERROR(WORKDAY(C184,R184,DiasNOLaborables),"") -> 43963 | M184: =+IF(C184="","",IF(I184="","",(IF(I184<=L184,"A TIEMPO","FUERA DE TIEMPO")))) -> A TIEMPO | N184: =IF(I184="","",NETWORKDAYS([4]Hoja1!C184+1,[4]Hoja1!P184,DiasNOLaborables)) -> 6 | R184: 20
A185: 174 | B185: 20200414221038 | C185: 43935 | D185: WEB (MÓDULO DE SOLICITUD DE INFORMACIÓN HIDROMETEOROLÓGICA) | E185: SOLICITUD DE INFORMACIÓN Y DOCUMENTOS | F185: SOLICITUD DE INFORMACIÓN HIDROMETEOROLÓGICA | G185: NO | H185: GRUPO DE ATENCIÓN AL CIUDADANO | I185: 43944 | L185: =IFERROR(WORKDAY(C185,R185,DiasNOLaborables),"") -> 43964 | M185: =+IF(C185="","",IF(I185="","",(IF(I185<=L185,"A TIEMPO","FUERA DE TIEMPO")))) -> A TIEMPO | N185: =IF(I185="","",NETWORKDAYS([4]Hoja1!C185+1,[4]Hoja1!P185,DiasNOLaborables)) -> 6 | R185: 20
A186: 175 | B186: 20200414214557 | C186: 43935 | D186: WEB (MÓDULO DE SOLICITUD DE INFORMACIÓN HIDROMETEOROLÓGICA) | E186: SOLICITUD DE INFORMACIÓN Y DOCUMENTOS | F186: SOLICITUD DE INFORMACIÓN HIDROMETEOROLÓGICA | G186: NO | H186: GRUPO DE ATENCIÓN AL CIUDADANO | I186: 43944 | L186: =IFERROR(WORKDAY(C186,R186,DiasNOLaborables),"") -> 43964 | M186: =+IF(C186="","",IF(I186="","",(IF(I186<=L186,"A TIEMPO","FUERA DE TIEMPO")))) -> A TIEMPO | N186: =IF(I186="","",NETWORKDAYS([4]Hoja1!C186+1,[4]Hoja1!P186,DiasNOLaborables)) -> 6 | R186: 20
A187: 176 | B187: 20200414204306 | C187: 43935 | D187: WEB (MÓDULO DE SOLICITUD DE INFORMACIÓN HIDROMETEOROLÓGICA) | E187: SOLICITUD DE INFORMACIÓN Y DOCUMENTOS | F187: SOLICITUD DE INFORMACIÓN HIDROMETEOROLÓGICA | G187: NO | H187: GRUPO DE ATENCIÓN AL CIUDADANO | I187: 43944 | L187: =IFERROR(WORKDAY(C187,R187,DiasNOLaborables),"") -> 43964 | M187: =+IF(C187="","",IF(I187="","",(IF(I187<=L187,"A TIEMPO","FUERA DE TIEMPO")))) -> A TIEMPO | N187: =IF(I187="","",NETWORKDAYS([4]Hoja1!C187+1,[4]Hoja1!P187,DiasNOLaborables)) -> 6 | R187: 20
A188: 177 | B188: 20200414164509 | C188: 43935 | D188: WEB (MÓDULO DE SOLICITUD DE INFORMACIÓN HIDROMETEOROLÓGICA) | E188: SOLICITUD DE INFORMACIÓN Y DOCUMENTOS | F188: SOLICITUD DE INFORMACIÓN HIDROMETEOROLÓGICA | G188: NO | H188: GRUPO DE ATENCIÓN AL CIUDADANO | I188: 43944 | L188: =IFERROR(WORKDAY(C188,R188,DiasNOLaborables),"") -> 43964 | M188: =+IF(C188="","",IF(I188="","",(IF(I188<=L188,"A TIEMPO","FUERA DE TIEMPO")))) -> A TIEMPO | N188: =IF(I188="","",NETWORKDAYS([4]Hoja1!C188+1,[4]Hoja1!P188,DiasNOLaborables)) -> 6 | R188: 20
A189: 178 | B189: 20200414164048 | C189: 43935 | D189: WEB (MÓDULO DE SOLICITUD DE INFORMACIÓN HIDROMETEOROLÓGICA) | E189: SOLICITUD DE INFORMACIÓN Y DOCUMENTOS | F189: SOLICITUD DE INFORMACIÓN HIDROMETEOROLÓGICA | G189: NO | H189: GRUPO DE ATENCIÓN AL CIUDADANO | I189: 43944 | L189: =IFERROR(WORKDAY(C189,R189,DiasNOLaborables),"") -> 43964 | M189: =+IF(C189="","",IF(I189="","",(IF(I189<=L189,"A TIEMPO","FUERA DE TIEMPO")))) -> A TIEMPO | N189: =IF(I189="","",NETWORKDAYS([4]Hoja1!C189+1,[4]Hoja1!P189,DiasNOLaborables)) -> 6 | R189: 20
A190: 179 | B190: 20200414163610 | C190: 43935 | D190: WEB (MÓDULO DE SOLICITUD DE INFORMACIÓN HIDROMETEOROLÓGICA) | E190: SOLICITUD DE INFORMACIÓN Y DOCUMENTOS | F190: SOLICITUD DE INFORMACIÓN HIDROMETEOROLÓGICA | G190: NO | H190: GRUPO DE ATENCIÓN AL CIUDADANO | I190: 43944 | L190: =IFERROR(WORKDAY(C190,R190,DiasNOLaborables),"") -> 43964 | M190: =+IF(C190="","",IF(I190="","",(IF(I190<=L190,"A TIEMPO","FUERA DE TIEMPO")))) -> A TIEMPO | N190: =IF(I190="","",NETWORKDAYS([4]Hoja1!C190+1,[4]Hoja1!P190,DiasNOLaborables)) -> 6 | R190: 20
A191: 180 | B191: 20200414163251 | C191: 43935 | D191: WEB (MÓDULO DE SOLICITUD DE INFORMACIÓN HIDROMETEOROLÓGICA) | E191: SOLICITUD DE INFORMACIÓN Y DOCUMENTOS | F191: SOLICITUD DE INFORMACIÓN HIDROMETEOROLÓGICA | G191: NO | H191: GRUPO DE ATENCIÓN AL CIUDADANO | I191: 43944 | L191: =IFERROR(WORKDAY(C191,R191,DiasNOLaborables),"") -> 43964 | M191: =+IF(C191="","",IF(I191="","",(IF(I191<=L191,"A TIEMPO","FUERA DE TIEMPO")))) -> A TIEMPO | N191: =IF(I191="","",NETWORKDAYS([4]Hoja1!C191+1,[4]Hoja1!P191,DiasNOLaborables)) -> 6 | R191: 20
A192: 181 | B192: 20200414162830 | C192: 43935 | D192: WEB (MÓDULO DE SOLICITUD DE INFORMACIÓN HIDROMETEOROLÓGICA) | E192: SOLICITUD DE INFORMACIÓN Y DOCUMENTOS | F192: SOLICITUD DE INFORMACIÓN HIDROMETEOROLÓGICA | G192: NO | H192: GRUPO DE ATENCIÓN AL CIUDADANO | I192: 43944 | L192: =IFERROR(WORKDAY(C192,R192,DiasNOLaborables),"") -> 43964 | M192: =+IF(C192="","",IF(I192="","",(IF(I192<=L192,"A TIEMPO","FUERA DE TIEMPO")))) -> A TIEMPO | N192: =IF(I192="","",NETWORKDAYS([4]Hoja1!C192+1,[4]Hoja1!P192,DiasNOLaborables)) -> 6 | R192: 20
A193: 182 | B193: 20200414162444 | C193: 43935 | D193: WEB (MÓDULO DE SOLICITUD DE INFORMACIÓN HIDROMETEOROLÓGICA) | E193: SOLICITUD DE INFORMACIÓN Y DOCUMENTOS | F193: SOLICITUD DE INFORMACIÓN HIDROMETEOROLÓGICA | G193: NO | H193: GRUPO DE ATENCIÓN AL CIUDADANO | I193: 43944 | L193: =IFERROR(WORKDAY(C193,R193,DiasNOLaborables),"") -> 43964 | M193: =+IF(C193="","",IF(I193="","",(IF(I193<=L193,"A TIEMPO","FUERA DE TIEMPO")))) -> A TIEMPO | N193: =IF(I193="","",NETWORKDAYS([4]Hoja1!C193+1,[4]Hoja1!P193,DiasNOLaborables)) -> 6 | R193: 20
A194: 183 | B194: 20200414162106 | C194: 43935 | D194: WEB (MÓDULO DE SOLICITUD DE INFORMACIÓN HIDROMETEOROLÓGICA) | E194: SOLICITUD DE INFORMACIÓN Y DOCUMENTOS | F194: SOLICITUD DE INFORMACIÓN HIDROMETEOROLÓGICA | G194: NO | H194: GRUPO DE ATENCIÓN AL CIUDADANO | I194: 43944 | L194: =IFERROR(WORKDAY(C194,R194,DiasNOLaborables),"") -> 43964 | M194: =+IF(C194="","",IF(I194="","",(IF(I194<=L194,"A TIEMPO","FUERA DE TIEMPO")))) -> A TIEMPO | N194: =IF(I194="","",NETWORKDAYS([4]Hoja1!C194+1,[4]Hoja1!P194,DiasNOLaborables)) -> 6 | R194: 20
A195: 184 | B195: 20200414161657 | C195: 43935 | D195: WEB (MÓDULO DE SOLICITUD DE INFORMACIÓN HIDROMETEOROLÓGICA) | E195: SOLICITUD DE INFORMACIÓN Y DOCUMENTOS | F195: SOLICITUD DE INFORMACIÓN HIDROMETEOROLÓGICA | G195: NO | H195: GRUPO DE ATENCIÓN AL CIUDADANO | I195: 43944 | L195: =IFERROR(WORKDAY(C195,R195,DiasNOLaborables),"") -> 43964 | M195: =+IF(C195="","",IF(I195="","",(IF(I195<=L195,"A TIEMPO","FUERA DE TIEMPO")))) -> A TIEMPO | N195: =IF(I195="","",NETWORKDAYS([4]Hoja1!C195+1,[4]Hoja1!P195,DiasNOLaborables)) -> 6 | R195: 20
A196: 185 | B196: 20200414161056 | C196: 43935 | D196: WEB (MÓDULO DE SOLICITUD DE INFORMACIÓN HIDROMETEOROLÓGICA) | E196: SOLICITUD DE INFORMACIÓN Y DOCUMENTOS | F196: SOLICITUD DE INFORMACIÓN HIDROMETEOROLÓGICA | G196: NO | H196: GRUPO DE ATENCIÓN AL CIUDADANO | I196: 43944 | L196: =IFERROR(WORKDAY(C196,R196,DiasNOLaborables),"") -> 43964 | M196: =+IF(C196="","",IF(I196="","",(IF(I196<=L196,"A TIEMPO","FUERA DE TIEMPO")))) -> A TIEMPO | N196: =IF(I196="","",NETWORKDAYS([4]Hoja1!C196+1,[4]Hoja1!P196,DiasNOLaborables)) -> 10 | R196: 20
A197: 186 | B197: 20200414155745 | C197: 43935 | D197: WEB (MÓDULO DE SOLICITUD DE INFORMACIÓN HIDROMETEOROLÓGICA) | E197: SOLICITUD DE INFORMACIÓN Y DOCUMENTOS | F197: SOLICITUD DE INFORMACIÓN HIDROMETEOROLÓGICA | G197: NO | H197: GRUPO DE ATENCIÓN AL CIUDADANO | I197: 43944 | L197: =IFERROR(WORKDAY(C197,R197,DiasNOLaborables),"") -> 43964 | M197: =+IF(C197="","",IF(I197="","",(IF(I197<=L197,"A TIEMPO","FUERA DE TIEMPO")))) -> A TIEMPO | N197: =IF(I197="","",NETWORKDAYS([4]Hoja1!C197+1,[4]Hoja1!P197,DiasNOLaborables)) -> 10 | R197: 20
A198: 187 | B198: 20200414154333 | C198: 43935 | D198: WEB (MÓDULO DE SOLICITUD DE INFORMACIÓN HIDROMETEOROLÓGICA) | E198: SOLICITUD DE INFORMACIÓN Y DOCUMENTOS | F198: SOLICITUD DE INFORMACIÓN HIDROMETEOROLÓGICA | G198: NO | H198: GRUPO DE ATENCIÓN AL CIUDADANO | I198: 43944 | L198: =IFERROR(WORKDAY(C198,R198,DiasNOLaborables),"") -> 43964 | M198: =+IF(C198="","",IF(I198="","",(IF(I198<=L198,"A TIEMPO","FUERA DE TIEMPO")))) -> A TIEMPO | N198: =IF(I198="","",NETWORKDAYS([4]Hoja1!C198+1,[4]Hoja1!P198,DiasNOLaborables)) -> 10 | R198: 20
A199: 188 | B199: 20200414153715 | C199: 43935 | D199: WEB (MÓDULO DE SOLICITUD DE INFORMACIÓN HIDROMETEOROLÓGICA) | E199: SOLICITUD DE INFORMACIÓN Y DOCUMENTOS | F199: SOLICITUD DE INFORMACIÓN HIDROMETEOROLÓGICA | G199: NO | H199: GRUPO DE ATENCIÓN AL CIUDADANO | I199: 43944 | L199: =IFERROR(WORKDAY(C199,R199,DiasNOLaborables),"") -> 43964 | M199: =+IF(C199="","",IF(I199="","",(IF(I199<=L199,"A TIEMPO","FUERA DE TIEMPO")))) -> A TIEMPO | N199: =IF(I199="","",NETWORKDAYS([4]Hoja1!C199+1,[4]Hoja1!P199,DiasNOLaborables)) -> 10 | R199: 20
A200: 189 | B200: 20200414153431 | C200: 43935 | D200: WEB (MÓDULO DE SOLICITUD DE INFORMACIÓN HIDROMETEOROLÓGICA) | E200: SOLICITUD DE INFORMACIÓN Y DOCUMENTOS | F200: SOLICITUD DE INFORMACIÓN HIDROMETEOROLÓGICA | G200: NO | H200: GRUPO DE ATENCIÓN AL CIUDADANO | I200: 43944 | L200: =IFERROR(WORKDAY(C200,R200,DiasNOLaborables),"") -> 43964 | M200: =+IF(C200="","",IF(I200="","",(IF(I200<=L200,"A TIEMPO","FUERA DE TIEMPO")))) -> A TIEMPO | N200: =IF(I200="","",NETWORKDAYS([4]Hoja1!C200+1,[4]Hoja1!P200,DiasNOLaborables)) -> 10 | R200: 20
... 3149 more rows

Sheet Hoja5
G2: ESTADO (A TIEMPO, FUERA DE TIEMPO, SIN RESPUESTA) | H2: (Todas) | L2: ESTADO | M2: CANTIDAD | O2: ESTADO | P2: PROMEDIO | U2: CANAL | V2: CANTIDAD | X2: PRODUCTO O SERVICIO SOLICITADO | Y2: CANTIDAD | AA2: ESTADO | AB2: CANTIDA | AC2: DIAS PROMEDIO | AE2: MEDIO RECEPCION | AF2: CANTIDAD | AI2: DESDE | AJ2: 43831
A3: DIAS, MES, TRIMESTRE | B3: CANTIDAD | D3: TIPO REQUERIMIENTO | E3: CANTIDAD | L3: A TIEMPO | M3: 3325 | O3: A TIEMPO | P3: 0.998798438 | U3: (en blanco) | X3: ACREDITACIÓN DE LABORATORIOS | Y3: 12 | AA3: A TIEMPO | AB3: 3325 | AC3: 6.873383459 | AE3: ATENCIÓN PRESENCIAL | AF3: 1 | AI3: HASTA | AJ3: 43921
A4: 43922 | B4: 66 | D4: CERTIFICACIONES DE TIEMPO, CLIMA Y EVENTOS HIDROLÓGICOS | E4: 226 | G4: DEPENDENCIA QUE RESPONDE | H4: CANTIDAD | J4: CANTIDAD | L4: FUERA DE TIEMPO | M4: 4 | O4: FUERA DE TIEMPO | P4: 0.001201562031 | U4: Total general | X4: ADMINISTRATIVA | Y4: 159 | AA4: FUERA DE TIEMPO | AB4: 4 | AC4: 7.25 | AE4: CORREO CERTIFICADO | AF4: 4 | AJ4: =DATEDIF(AJ2,AJ3,"m")+1 -> 3
A5: 43923 | B5: 75 | D5: PETICIÓN | E5: 29 | G5: DIRECCIÓN GENERAL | H5: 4 | J5: 3329 | L5: (en blanco) | O5: (en blanco) | P5: 0 | X5: BOSQUES | Y5: 20 | AA5: (en blanco) | AE5: CORREO ELECTRÓNICO | AF5: 1247 | AI5: Mes | AJ5: Cantidad | AK5: En termino | AL5: Fuera de termino | AN5: Fecha | AO5: Cantidad PQRS
A6: 43924 | B6: 57 | D6: PETICIÓN ENTRE AUTORIDADES | E6: 3 | G6: GRUPO DE ADMINISTRACIÓN Y DESARROLLO DEL TALENTO HUMANO | H6: 94 | L6: Total general | M6: 3329 | O6: Total general | P6: 1 | X6: CAMBIO CLIMÁTICO | Y6: 4 | AA6: Total general | AB6: 3329 | AC6: 6.873835987 | AE6: MODULO CONTACTENOS | AF6: 838 | AI6: =IF(ROWS(AI$6:AI6)>AJ$4,"",MIN(AJ$3,EOMONTH(AI12,1))) -> 2020-01-31 | AJ6: =COUNTIFS(Tabla1[FECHA DE REQUERIMIENTO (dd/mm/aaaa)],">"&AI12,Tabla1[FECHA DE REQUERIMIENTO (dd/mm/aaaa)],"<="&AI6) -> 0 | AK6: =COUNTIFS(Tabla1[FECHA DE REQUERIMIENTO (dd/mm/aaaa)],">"&AI12,Tabla1[FECHA DE REQUERIMIENTO (dd/mm/aaaa)],"<="&AI6,Tabla1[ESTADO (A TIEMPO, FUERA DE TIEMPO, SIN RESPUESTA)],"A TIEMPO") -> 0 | AL6: =AJ6-AK6 -> 0 | AO6: 0
A7: 43925 | B7: 17 | D7: SOLICITUD DE INFORMACIÓN Y DOCUMENTOS | E7: 3062 | G7: GRUPO DE ATENCIÓN AL CIUDADANO | H7: 2192 | X7: CERTIFICACIONES DE TIEMPO Y CLIMA | Y7: 230 | AE7: WEB (MÓDULO DE SOLICITUD DE INFORMACIÓN HIDROMETEOROLÓGICA) | AF7: 1239 | AI7: =IF(ROWS(AI$6:AI7)>AJ$4,"",MIN(AJ$3,EOMONTH(AI6,1))) -> 2020-02-29 | AJ7: =COUNTIFS(Tabla1[FECHA DE REQUERIMIENTO (dd/mm/aaaa)],">"&AI6,Tabla1[FECHA DE REQUERIMIENTO (dd/mm/aaaa)],"<="&AI7) -> 0 | AK7: =COUNTIFS(Tabla1[FECHA DE REQUERIMIENTO (dd/mm/aaaa)],">"&AI6,Tabla1[FECHA DE REQUERIMIENTO (dd/mm/aaaa)],"<="&AI7,Tabla1[ESTADO (A TIEMPO, FUERA DE TIEMPO, SIN RESPUESTA)],"A TIEMPO") -> 0 | AL7: =AJ7-AK7 -> 0 | AN7: 43861 | AO7: 0
A8: 43927 | B8: 47 | D8: SOLICITUD JUDICIAL | E8: 4 | G8: GRUPO DE COMUNICACIONES | H8: 1 | X8: CLIMATOLOGÍA | Y8: 16 | AE8: (en blanco) | AI8: =IF(ROWS(AI$6:AI8)>AJ$4,"",MIN(AJ$3,EOMONTH(AI7,1))) -> 2020-03-31 | AJ8: =COUNTIFS(Tabla1[FECHA DE REQUERIMIENTO (dd/mm/aaaa)],">"&AI7,Tabla1[FECHA DE REQUERIMIENTO (dd/mm/aaaa)],"<="&AI8) -> 0 | AK8: =COUNTIFS(Tabla1[FECHA DE REQUERIMIENTO (dd/mm/aaaa)],">"&AI7,Tabla1[FECHA DE REQUERIMIENTO (dd/mm/aaaa)],"<="&AI8,Tabla1[ESTADO (A TIEMPO, FUERA DE TIEMPO, SIN RESPUESTA)],"A TIEMPO") -> 0 | AL8: 0 | AN8: 43890 | AO8: 0
A9: 43928 | B9: 50 | D9: (en blanco) | G9: GRUPO DE GESTIÓN DOCUMENTAL Y CENTRO DE DOCUMENTACIÓN | H9: 12 | X9: INFORMES AMBIENTALES | Y9: 6 | AE9: Total general | AF9: 3329 | AI9: =IF(ROWS(AI$6:AI9)>AJ$4,"",MIN(AJ$3,EOMONTH(AI8,1))) ->  | AJ9: =COUNTIFS(Tabla1[FECHA DE REQUERIMIENTO (dd/mm/aaaa)],">"&AI8,Tabla1[FECHA DE REQUERIMIENTO (dd/mm/aaaa)],"<="&AI9) -> 0 | AK9: =COUNTIFS(Tabla1[FECHA DE REQUERIMIENTO (dd/mm/aaaa)],">"&AI8,Tabla1[FECHA DE REQUERIMIENTO (dd/mm/aaaa)],"<="&AI9,Tabla1[ESTADO (A TIEMPO, FUERA DE TIEMPO, SIN RESPUESTA)],"A TIEMPO") -> 0 | AL9: 0 | AN9: 43921 | AO9: 0
A10: 43929 | B10: 45 | D10: SOLICITUD JUDICIAL | E10: 5 | G10: GRUPO DE TESORERÍA | H10: 44 | X10: JURIDICO | Y10: 2 | AI10: =IF(ROWS(AI$6:AI10)>AJ$4,"",MIN(AJ$3,EOMONTH(AI9,1))) ->  | AJ10: =COUNTIFS(Tabla1[FECHA DE REQUERIMIENTO (dd/mm/aaaa)],">"&AI9,Tabla1[FECHA DE REQUERIMIENTO (dd/mm/aaaa)],"<="&AI10) -> 0 | AK10: =COUNTIFS(Tabla1[FECHA DE REQUERIMIENTO (dd/mm/aaaa)],">"&AI9,Tabla1[FECHA DE REQUERIMIENTO (dd/mm/aaaa)],"<="&AI10,Tabla1[ESTADO (A TIEMPO, FUERA DE TIEMPO, SIN RESPUESTA)],"A TIEMPO") -> 0 | AL10: 0 | AN10: Total general | AO10: 0
A11: 43936 | B11: 32 | D11: Total general | E11: 3329 | G11: OFICINA ASESORA JURÍDICA | H11: 23 | X11: OPERACIÓN DE REDES | Y11: 3 | AI11: =IF(ROWS(AI$6:AI11)>AJ$4,"",MIN(AJ$3,EOMONTH(AI10,1))) ->  | AJ11: =COUNTIFS(Tabla1[FECHA DE REQUERIMIENTO (dd/mm/aaaa)],">"&AI10,Tabla1[FECHA DE REQUERIMIENTO (dd/mm/aaaa)],"<="&AI11) -> 0 | AK11: =COUNTIFS(Tabla1[FECHA DE REQUERIMIENTO (dd/mm/aaaa)],">"&AI10,Tabla1[FECHA DE REQUERIMIENTO (dd/mm/aaaa)],"<="&AI11,Tabla1[ESTADO (A TIEMPO, FUERA DE TIEMPO, SIN RESPUESTA)],"A TIEMPO") -> 0 | AL11: =AJ11-AK11 -> 0
A12: 43931 | B12: 36 | G12: OFICINA DE INFORMÁTICA | H12: 97 | X12: PRONÓSTICOS Y ALERTAS | Y12: 2 | AI12: =AJ2-1 -> 43830 | AJ12: =SUM(OFFSET(AJ6,,,$AJ4,)) -> 0 | AK12: =SUM(OFFSET(AK6,,,$AJ4,)) -> 0 | AL12: =SUM(OFFSET(AL6,,,$AJ4,)) -> 0
A13: 43932 | B13: 17 | G13: OFICINA DEL SERVICIO DE PRONÓSTICOS Y ALERTAS | H13: 13 | X13: REGISTROS AMBIENTALES | Y13: 282
A14: 43934 | B14: 45 | G14: SUBDIRECCIÓN DE ECOSISTEMAS E INFORMACIÓN AMBIENTAL | H14: 104 | X14: SIA | Y14: 4
A15: 43935 | B15: 83 | G15: SUBDIRECCIÓN DE ESTUDIOS AMBIENTALES | H15: 389 | X15: SIRH | Y15: 16
A16: 43939 | B16: 21 | G16: SUBDIRECCIÓN DE HIDROLOGÍA | H16: 75 | X16: SOLICITUD DE INFORMACIÓN HIDROMETEOROLÓGICA | Y16: 2327
A17: 43940 | B17: 5 | G17: SUBDIRECCIÓN DE METEOROLOGÍA | H17: 281 | X17: SOLICITUD DE INFORMACIÓN Y DOCUMENTOS | Y17: 210
A18: 43943 | B18: 75 | G18: (en blanco) | X18: SUELOS Y TIERRAS | Y18: 2
A19: 43941 | B19: 66 | G19: Total general | H19: 3329 | X19: WEB Y CORREO | Y19: 34
A20: 43944 | B20: 50 | X20: (en blanco)
A21: 43945 | B21: 39 | X21: Total general | Y21: 3329
A22: 43946 | B22: 13
A23: 43947 | B23: 8
A24: 43948 | B24: 63
A25: 43949 | B25: 33
A26: 43950 | B26: 62
A27: 43951 | B27: 34
A28: 43926 | B28: 21
A29: 43933 | B29: 15
A30: 43930 | B30: 12
A31: 43937 | B31: 45
A32: 43938 | B32: 47
A33: 43942 | B33: 53
A34: 43954 | B34: 11
A35: 43955 | B35: 43
A36: 43956 | B36: 36
A37: 43957 | B37: 39
A38: 43958 | B38: 36
A39: 43959 | B39: 43
A40: 43960 | B40: 6
A41: 43961 | B41: 4
A42: 43962 | B42: 79
A43: 43963 | B43: 20
A44: 43964 | B44: 42
A45: 43965 | B45: 22
A46: 43966 | B46: 33
A47: 43967 | B47: 15
A48: 43968 | B48: 9
A49: 43969 | B49: 53
A50: 43970 | B50: 41
A51: 43971 | B51: 23
A52: 43972 | B52: 46
A53: 43973 | B53: 46
A54: 43974 | B54: 13
A55: 43975 | B55: 10
A56: 43976 | B56: 13
A57: 43977 | B57: 56
A58: 43978 | B58: 36
A59: 43979 | B59: 61
A60: 43980 | B60: 46
A61: 43981 | B61: 7
A62: 43982 | B62: 14
A63: 43952 | B63: 6
A64: 43953 | B64: 5
A65: 43983 | B65: 79
A66: 43984 | B66: 47
A67: 43985 | B67: 51
A68: 43986 | B68: 45
A69: 43987 | B69: 71
A70: 43988 | B70: 19
A71: 43989 | B71: 10
A72: 43990 | B72: 58
A73: 43991 | B73: 39
A74: 43992 | B74: 45
A75: 43993 | B75: 50
A76: 43994 | B76: 31
A77: 43995 | B77: 12
A78: 43996 | B78: 5
A79: 43997 | B79: 9
A80: 43998 | B80: 33
A81: 43999 | B81: 80
A82: 44000 | B82: 74
A83: 44001 | B83: 43
A84: 44002 | B84: 14
A85: 44003 | B85: 18
A86: 44004 | B86: 41
A87: 44005 | B87: 50
A88: 44006 | B88: 52
A89: 44007 | B89: 45
A90: 44008 | B90: 29
A91: 44009 | B91: 21
A92: 44011 | B92: 14
A93: 44012 | B93: 98
A94: (en blanco)
A95: Total general | B95: 3329

Sheet Hoja2
A2: ANALISIS ESTADO SOLICITUDES
A16: TOTAL SOLICITUDES | G16: =+Hoja5!J5 -> 3329
